{"text_format":"1","workbook":"xlsx","n_sheets":4,"sheets":["OB6 - Cena rekapitulace","OB6 - Harmonogram rekapitulace","OB6 - Časový harmonogram","OB6 - Finanční harmonogram"],"not_rendered":{"charts":0,"images":2,"macros":1,"external_links":0,"defined_names":0,"comments":0,"pivot_tables":0},"unopened":[],"bounds":{"document_bytes":16777216,"sheet_cells":100000,"rows_first":2000,"rows_last":500,"rows_between":2000,"halvings":0,"cell_chars":16384,"cell_head_chars":4096},"cells_cut":0,"cells_raw":0,"read":"whole","date_system":"1900"}

{"sheet":"OB6 - Cena rekapitulace","index":0,"n_rows":38,"n_cols":9,"rows_kept":38,"cut":false,"hidden":false,"merged":[[32,1,32,3],[28,1,28,3],[29,1,29,3],[30,1,30,3],[3,0,4,0],[3,1,4,1],[3,2,4,2],[3,3,4,3]]}
[]
[null,"Příloha K zadávací dokumentace - Cena rekapitulace"]
[]
["SO, IO, PS"," Popis","Etapa","jednotka","Cena za položku"]
[null,null,null,null,"(EUR bez DPH)"]
["SO 401","Demolice objektů ","I. Etapa","kpl",0]
["SO 101 / SO 106","Příjem a úprava dřevní štěpky / Elektrorozvodna hospodářství dřevní štěpky ","I. Etapa","kpl",0]
["SO 102.2","Sklad dřevní štěpky","I. Etapa","kpl",0]
["SO 103.2 / SO 112","Doprava dřevní štěpky do skladu/Vzorkovna","I. Etapa","kpl",0]
["SO 104.2","Doprava dřevní štěpky do kotelen","I. Etapa","kpl",0]
["SO 105","SHZ - strojovna a základy nádrže ","I. Etapa","kpl",0]
["SO 109","Přesuvna vagonů","I. Etapa","kpl",0]
["SO 113","Silniční váhy ","I. Etapa","kpl",0]
["SO 201.2 / SO 202.2","Kotelna K20 + Partie za kotlem K20 - čištění spalin - viz SO 201 (OB 6)","I. Etapa","kpl",0]
["SO 204.2 / SO 205.2","Vnější kouřovody - základy a konstrukce (OB 6) – spodní stavba + Odpopílkování ","I. Etapa","kpl",0]
["IO 301","Komunikace a zpevněné a manipulační plochy 1","I. Etapa","kpl",0]
["IO 302","Kanalizace","I. Etapa","kpl",0]
["IO 303","Venkovní osvětlení","I. Etapa","kpl",0]
["IO 304","Pitná voda","I. Etapa","kpl",0]
["IO 306","Průmyslová voda (vč. přesunu hydrantů)","I. Etapa","kpl",0]
["IO 307","Přeložky elektro a nové přípojky","I. Etapa","kpl",0]
["MV","Přeložka monitorovacích vrtů","I. Etapa","kpl",0]
["SO 402 / PS 401","Demolice objektů, technologie - uhelný sklad","II. Etapa","kpl",0,null,null,null,";"]
["SO 111","Sadové úpravy a zatravněné plochy ","II. Etapa","kpl",0]
["IO 301","Komunikace a zpevněné a manipulační plochy 2","II. Etapa","kpl",0]
["IO 302-08","Stoka U  ","II. Etapa","kpl",0]
["ZS / VRN","Zařízení staveniště a vedlejší rozpočtové náklady",null,"kpl",0]
[]
["Celkem","I. Etapa",null,null,{"$f":"SUM(E6:E22)","v":0}]
["Celkem ","II. Etapa",null,null,{"$f":"SUM(E23:E26)","v":0}]
["Celkem ","ZS / VRN",null,null,{"$f":"SUM(E27)","v":0}]
[]
["Celková nabídková cena: ",null,null,null,{"$f":"SUM(E29:E31)","v":0}]
[]
[]
[null,"Poznámka:"]
[null,"Zhotovitel vyplňuje pouze žlutě zvýrazněné číselné hodnoty \"Cena za položku\" !!!"]
[null,"*časový harmonogram je nutné vyplnit až po dokončení cenových tabulek"]

{"sheet":"OB6 - Harmonogram rekapitulace","index":1,"n_rows":81,"n_cols":49,"rows_kept":81,"cut":false,"hidden":true,"merged":[[58,1,58,15],[59,1,60,10],[57,1,57,11],[15,4,16,4],[17,4,18,4],[11,5,12,5],[13,5,14,5],[7,6,8,6],[9,6,10,6],[11,6,12,6],[13,6,14,6],[15,6,16,6],[17,6,18,6],[15,5,16,5],[7,5,8,5],[17,5,18,5],[7,4,8,4],[9,4,10,4],[11,4,12,4],[13,4,14,4],[19,6,20,6],[21,6,22,6],[23,6,24,6],[19,1,20,1],[43,0,44,0],[43,1,44,1],[43,2,44,2],[35,5,36,5],[43,5,44,5],[43,4,44,4],[35,3,36,3],[43,3,44,3],[21,5,22,5],[21,2,22,2],[21,1,22,1],[27,4,28,4],[29,4,30,4],[49,1,50,1],[49,2,50,2],[49,5,50,5],[45,0,46,0],[45,1,46,1],[45,2,46,2],[47,0,48,0],[47,1,48,1],[47,2,48,2],[47,5,48,5],[45,4,46,4],[47,4,48,4],[49,4,50,4],[47,3,48,3],[49,3,50,3],[45,5,46,5],[7,0,8,0],[15,0,16,0],[21,0,22,0],[31,0,32,0],[31,1,32,1],[31,5,32,5],[33,0,34,0],[33,1,34,1],[33,5,34,5],[29,0,30,0],[7,3,8,3],[9,3,10,3],[11,3,12,3],[13,3,14,3],[15,3,16,3],[17,3,18,3],[19,3,20,3],[21,3,22,3],[23,3,24,3],[25,3,26,3],[27,3,28,3],[29,3,30,3],[31,3,32,3],[33,3,34,3],[9,0,10,0],[11,0,12,0],[23,0,24,0],[35,1,36,1],[9,5,10,5],[25,0,26,0],[25,1,26,1],[25,2,26,2],[25,5,26,5],[29,1,30,1],[29,5,30,5],[19,0,20,0],[13,0,14,0],[23,5,24,5],[31,2,32,2],[33,2,34,2],[35,2,36,2],[13,1,14,1],[23,1,24,1],[23,2,24,2],[17,0,18,0],[27,0,28,0],[27,1,28,1],[35,0,36,0],[54,8,54,48],[29,6,30,6],[31,6,32,6],[33,6,34,6],[43,6,44,6],[29,2,30,2],[27,2,28,2],[27,5,28,5],[19,4,20,4],[41,4,42,4],[41,5,42,5],[31,4,32,4],[33,4,34,4],[35,4,36,4],[25,6,26,6],[27,6,28,6],[19,2,20,2],[45,6,46,6],[47,6,48,6],[35,6,36,6],[21,4,22,4],[23,4,24,4],[25,4,26,4],[19,5,20,5],[54,1,54,7],[37,0,38,0],[37,1,38,1],[37,2,38,2],[37,3,38,3],[37,4,38,4],[37,5,38,5],[37,6,38,6],[39,0,40,0],[39,1,40,1],[39,2,40,2],[39,3,40,3],[39,4,40,4],[39,5,40,5],[39,6,40,6],[41,0,42,0],[41,1,42,1],[41,2,42,2],[41,3,42,3],[53,1,53,7],[49,6,50,6],[41,6,42,6],[45,3,46,3],[49,0,50,0],[4,8,4,48],[4,0,5,0],[4,1,5,1],[4,2,5,2],[4,3,5,3],[4,4,5,4],[4,5,5,5],[4,7,5,7],[4,6,5,6],[15,1,16,1],[7,1,8,1],[7,2,8,2],[15,2,16,2],[13,2,14,2],[11,2,12,2],[9,2,10,2],[17,1,18,1],[17,2,18,2],[9,1,10,1],[11,1,12,1]]}
[]
[null,"Příloha K zadávací dokumentace - Harmonogram rekapitulace"]
[]
[]
["SO, IO, PS"," Popis","Etapa","Začátek nejdříve (měsíc)","Konec nejpozději (měsíc)","Cena za položku bez DPH (EUR)",null,"Termín / cena bez DPH (EUR)","Období"]
[null,null,null,null,null,null,null,null,"2024-08-01","2024-09-02","2024-10-04","2024-11-05","2024-12-07","2025-01-08","2025-02-09","2025-03-13","2025-04-14","2025-05-16","2025-06-17","2025-07-19","2025-08-20","2025-09-21","2025-10-23","2025-11-24","2025-12-26","2026-01-31","2026-02-28","2026-03-31","2026-04-01","2026-05-03","2026-06-04","2026-07-06","2026-08-07","2026-09-08","2026-10-10","2026-11-11","2026-12-13","2027-01-14","2027-02-15","2027-03-19","2027-04-20","2027-05-22","2027-06-23","2027-07-25","2027-08-26","2027-09-27","2027-10-29","2027-11-30","2027-12-31"]
[null,0,0,{"$f":"C7-B7","v":0},null,null,null,null,1,2,3,4,5,6,7,8,9,10,11,12,13,14,15,16,17,18,19,20,21,22,23,24,25,26,27,28,29,30,31,32,33,34,35,36,37,38,39,40,41]
["SO 401","Demolice objektů ","I. Etapa",1,3,{"$f":"SUM(I9:AW9)","v":0},null,"termín"]
[null,null,null,null,null,null,null,"cena"]
["SO 101 / SO 106","Příjem a úprava dřevní štěpky / Elektrorozvodna hospodářství dřevní štěpky ","I. Etapa",1,9,{"$f":"SUM(I11:AW11)","v":0},null,"termín"]
[null,null,null,null,null,null,null,"cena"]
["SO 102.2","Sklad dřevní štěpky","I. Etapa",1,17,{"$f":"SUM(I13:AW13)","v":0},null,"termín"]
[null,null,null,null,null,null,null,"cena"]
["SO 103.2 / SO 112","Doprava dřevní štěpky do skladu / Vzorkovna","I. Etapa",1,9,{"$f":"SUM(I15:AW15)","v":0},null,"termín"]
[null,null,null,null,null,null,null,"cena"]
["SO 104.2","Doprava dřevní štěpky do kotelen","I. Etapa",1,9,{"$f":"SUM(I17:AW17)","v":0},null,"termín"]
[null,null,null,null,null,null,null,"cena"]
["SO 105","SHZ - strojovna a základy nádrže ","I. Etapa",1,6,{"$f":"SUM(I19:AW19)","v":0},null,"termín"]
[null,null,null,null,null,null,null,"cena"]
["SO 109","Přesuvna vagonů","I. Etapa",1,12,{"$f":"SUM(I21:AW21)","v":0},null,"termín"]
[null,null,null,null,null,null,null,"cena"]
["SO 113","Silniční váhy ","I. Etapa",10,14,{"$f":"SUM(I23:AW23)","v":0},null,"termín"]
[null,null,null,null,null,null,null,"cena"]
["SO 201.2 / SO 202.2","Kotelna K20 + Partie za kotlem K20 - čištění spalin - viz SO 201 (OB 6)","I. Etapa",3,9,{"$f":"SUM(I25:AW25)","v":0},null,"termín"]
[null,null,null,null,null,null,null,"cena"]
["SO 204.2 / SO 205.2","Vnější kouřovody - základy a konstrukce (OB 6) – spodní stavba + Odpopílkování ","I. Etapa",3,9,{"$f":"SUM(I27:AW27)","v":0},null,"termín"]
[null,null,null,null,null,null,null,"cena"]
["IO 301","Komunikace a zpevněné a manipulační plochy 1","I. Etapa",12,17,{"$f":"SUM(I29:AW29)","v":0},null,"termín"]
[null,null,null,null,null,null,null,"cena"]
["IO 302","Kanalizace","I. Etapa",1,12,{"$f":"SUM(I31:AW31)","v":0},null,"termín"]
[null,null,null,null,null,null,null,"cena"]
["IO 303","Venkovní osvětlení","I. Etapa",1,17,{"$f":"SUM(I33:AW33)","v":0},null,"termín"]
[null,null,null,null,null,null,null,"cena"]
["IO 304","Pitná voda","I. Etapa",1,12,{"$f":"SUM(I35:AW35)","v":0},null,"termín"]
[null,null,null,null,null,null,null,"cena"]
["IO 306","Průmyslová voda (vč. přesunu hydrantů)","I. Etapa",1,12,{"$f":"SUM(I37:AW37)","v":0},null,"termín"]
[null,null,null,null,null,null,null,"cena"]
["IO 307","Přeložky elektro a nové přípojky","I. Etapa",1,12,{"$f":"SUM(I39:AW39)","v":0},null,"termín"]
[null,null,null,null,null,null,null,"cena"]
["MV","Přeložka monitorovacích vrtů","I. Etapa",1,12,{"$f":"SUM(I41:AW41)","v":0},null,"termín"]
[null,null,null,null,null,null,null,"cena"]
["SO 402 / PS 401","Demolice objektů, technologie - uhelný sklad","II. Etapa",38,41,{"$f":"SUM(I43:AW43)","v":0},null,"termín"]
[null,null,null,null,null,null,null,"cena"]
["SO 111","Sadové úpravy a zatravněné plochy ","II. Etapa",38,41,{"$f":"SUM(I45:AW45)","v":0},null,"termín"]
[null,null,null,null,null,null,null,"cena"]
["IO 301","Komunikace a zpevněné a manipulační plochy 2","II. Etapa",38,41,{"$f":"SUM(I47:AW47)","v":0},null,"termín"]
[null,null,null,null,null,null,null,"cena"]
["IO 302-08","Stoka U","II. Etapa",38,41,{"$f":"SUM(I49:AW49)","v":0},null,"termín"]
[null,null,null,null,null,null,null,"cena"]
["ZS / VRN","Zařízení staveniště a vedlejší rozpočtové náklady",null,1,41,{"$f":"SUM(I51:AW51)","v":0},null,"termín"]
[null,null,null,null,null,null,null,"cena"]
[]
[]
[null,"Dílčí ceny po měsících",null,null,null,null,null,null,{"$f":"I9+I11+I13+I15+I17+I19+I21+I23+I25+I27+I29+I31+I33+I35+I37+I39+I41+I43+I45+I47+I49+I51","v":0},{"$f":"J9+J11+J13+J15+J17+J19+J21+J23+J25+J27+J29+J31+J33+J35+J37+J39+J41+J43+J45+J47+J49+J51","v":0},0,0,0,0,0,0,0,0,0,0,0,0,0,0,0,0,{"$f":"AA9+AA11+AA13+AA15+AA17+AA19+AA21+AA23+AA25+AA27+AA29+AA31+AA33+AA35+AA37+AA39+AA41+AA43+AA45+AA47+AA49+AA51","v":0},0,0,0,0,0,0,0,0,0,0,0,0,0,0,0,0,0,0,0,0,0,{"$f":"AW9+AW11+AW13+AW15+AW17+AW19+AW21+AW23+AW25+AW27+AW29+AW31+AW33+AW35+AW37+AW39+AW41+AW43+AW45+AW47+AW49+AW51","v":0}]
[null,"Cena celkem",null,null,null,null,null,null,{"$f":"SUM(I54:AW54)","v":0}]
[]
[null," Poznámka:"]
[null,"!!!! Zhotovitel vyplňuje pouze číselné hodnoty, které se otevřou po rozkliknutí tlačítka                             - viz. Obrázenk č.1 !!!!"]
[null,"Zhotovitel má výslovně zakázáno měnit jakýkoliv obsah buněk vyjma výše uvedeného. Hodnoty ve sloupcích \"D\" - Začátek nejdříve a \"E\" - Konec nejpozději jsou pevné a neměnné limitní termíny zahájení prací a ukončení prací na jednotlivých stavebních   SO, IO, PS."]
[null,"Obrázek č.1",null,null,null,null,null,null,null,null,null,{"$f":"_xlfn.CONCAT(Q60,\" \",R60)","v":"SO 401 Demolice objektů "},null,null,null,null,"SO 401","Demolice objektů "]
[null,null,null,null,null,null,null,null,null,null,null,{"$f":"_xlfn.CONCAT(Q61,\" \",R61)","v":"SO 101 / SO 106 Příjem a úprava dřevní štěpky / Elektrorozvodna hospodářství dřevní štěpky "},null,null,null,null,"SO 101 / SO 106","Příjem a úprava dřevní štěpky / Elektrorozvodna hospodářství dřevní štěpky "]
[null,null,null,null,null,null,null,null,null,null,null,"SO 102.2 Sklad dřevní štěpky",null,null,null,null,"SO 102.2","Sklad dřevní štěpky"]
[null,null,null,null,null,null,null,null,null,null,null,"SO 103.2 / SO 112 Doprava dřevní štěpky do skladu / Vzorkovna",null,null,null,null,"SO 103.2 / SO 112","Doprava dřevní štěpky do skladu / Vzorkovna"]
[null,null,null,null,null,null,null,null,null,null,null,"SO 104.2 Doprava dřevní štěpky do kotelen",null,null,null,null,"SO 104.2","Doprava dřevní štěpky do kotelen"]
[null,null,null,null,null,null,null,null,null,null,null,"SO 105 SHZ - strojovna a základy nádrže ",null,null,null,null,"SO 105","SHZ - strojovna a základy nádrže "]
[null,null,null,null,null,null,null,null,null,null,null,"SO 109 Přesuvna vagonů",null,null,null,null,"SO 109","Přesuvna vagonů"]
[null,null,null,null,null,null,null,null,null,null,null,"SO 113 Silniční váhy ",null,null,null,null,"SO 113","Silniční váhy "]
[null,null,null,null,null,null,null,null,null,null,null,"SO 201.2 / SO 202.2 Kotelna K20 + Partie za kotlem K20 - čištění spalin - viz SO 201 (OB 6)",null,null,null,null,"SO 201.2 / SO 202.2","Kotelna K20 + Partie za kotlem K20 - čištění spalin - viz SO 201 (OB 6)"]
[null,null,null,null,null,null,null,null,null,null,null,"SO 204.2 / SO 205.2 Vnější kouřovody - základy a konstrukce (OB 6) – spodní stavba + Odpopílkování ",null,null,null,null,"SO 204.2 / SO 205.2","Vnější kouřovody - základy a konstrukce (OB 6) – spodní stavba + Odpopílkování "]
[null,null,null,null,null,null,null,null,null,null,null,"IO 301 Komunikace a zpevněné a manipulační plochy 1",null,null,null,null,"IO 301","Komunikace a zpevněné a manipulační plochy 1"]
[null,null,null,null,null,null,null,null,null,null,null,"IO 302 Kanalizace",null,null,null,null,"IO 302","Kanalizace"]
[null,null,null,null,null,null,null,null,null,null,null,"IO 303 Venkovní osvětlení",null,null,null,null,"IO 303","Venkovní osvětlení"]
[null,null,null,null,null,null,null,null,null,null,null,"IO 304 Pitná voda",null,null,null,null,"IO 304","Pitná voda"]
[null,null,null,null,null,null,null,null,null,null,null,"IO 306 Průmyslová voda (vč. přesunu hydrantů)",null,null,null,null,"IO 306","Průmyslová voda (vč. přesunu hydrantů)"]
[null,null,null,null,null,null,null,null,null,null,null,"IO 307 Přeložky elektro a nové přípojky",null,null,null,null,"IO 307","Přeložky elektro a nové přípojky"]
[null,null,null,null,null,null,null,null,null,null,null,"MV Přeložka monitorovacích vrtů",null,null,null,null,"MV","Přeložka monitorovacích vrtů"]
[null,null,null,null,null,null,null,null,null,null,null,"SO 402 / PS 401 Demolice objektů, technologie - uhelný sklad",null,null,null,null,"SO 402 / PS 401","Demolice objektů, technologie - uhelný sklad"]
[null,null,null,null,null,null,null,null,null,null,null,"SO 111 Sadové úpravy a zatravněné plochy ",null,null,null,null,"SO 111","Sadové úpravy a zatravněné plochy "]
[null,null,null,null,null,null,null,null,null,null,null,"IO 301 Komunikace a zpevněné a manipulační plochy 2",null,null,null,null,"IO 301","Komunikace a zpevněné a manipulační plochy 2"]
[null,null,null,null,null,null,null,null,null,null,null,"IO 302-08 Stoka U",null,null,null,null,"IO 302-08","Stoka U"]
[null,null,null,null,null,null,null,null,null,null,null,"ZS / VRN Zařízení staveniště a vedlejší rozpočtové náklady",null,null,null,null,"ZS / VRN","Zařízení staveniště a vedlejší rozpočtové náklady"]

{"sheet":"OB6 - Časový harmonogram","index":2,"n_rows":55,"n_cols":44,"rows_kept":55,"cut":false,"hidden":true,"merged":[[3,0,4,0],[3,1,4,1],[3,2,4,2],[3,3,3,43]]}
[]
[null,"Příloha K zadávací dokumentace - Časový harmonogram"]
[]
["SO, IO, PS"," Popis","Etapa","Období"]
[null,null,null,"2024-08-01","2024-09-02","2024-10-04","2024-11-05","2024-12-07","2025-01-08","2025-02-09","2025-03-13","2025-04-14","2025-05-16","2025-06-17","2025-07-19","2025-08-20","2025-09-21","2025-10-23","2025-11-24","2025-12-26","2026-01-27","2026-02-28","2026-03-31","2026-04-01","2026-05-03","2026-06-04","2026-07-06","2026-08-07","2026-09-08","2026-10-10","2026-11-11","2026-12-13","2027-01-14","2027-02-15","2027-03-19","2027-04-20","2027-05-22","2027-06-23","2027-07-25","2027-08-26","2027-09-27","2027-10-29","2027-11-30","2027-12-31"]
[null,1,1,1,2,3,4,5,6,7,8,9,10,11,12,13,14,15,16,17,18,19,20,21,22,23,24,25,26,27,28,29,30,31,32,33,34,35,36,37,38,39,40,41]
["SO 401","Demolice objektů ","I.Etapa",{"$f":"'OB6 - Harmonogram rekapitulace'!I8","v":0},{"$f":"'OB6 - Harmonogram rekapitulace'!J8","v":0},{"$f":"'OB6 - Harmonogram rekapitulace'!K8","v":0},{"$f":"'OB6 - Harmonogram rekapitulace'!L8","v":0},{"$f":"'OB6 - Harmonogram rekapitulace'!M8","v":0},{"$f":"'OB6 - Harmonogram rekapitulace'!N8","v":0},{"$f":"'OB6 - Harmonogram rekapitulace'!O8","v":0},{"$f":"'OB6 - Harmonogram rekapitulace'!P8","v":0},{"$f":"'OB6 - Harmonogram rekapitulace'!Q8","v":0},{"$f":"'OB6 - Harmonogram rekapitulace'!R8","v":0},{"$f":"'OB6 - Harmonogram rekapitulace'!S8","v":0},{"$f":"'OB6 - Harmonogram rekapitulace'!T8","v":0},{"$f":"'OB6 - Harmonogram rekapitulace'!U8","v":0},{"$f":"'OB6 - Harmonogram rekapitulace'!V8","v":0},{"$f":"'OB6 - Harmonogram rekapitulace'!W8","v":0},{"$f":"'OB6 - Harmonogram rekapitulace'!X8","v":0},{"$f":"'OB6 - Harmonogram rekapitulace'!Y8","v":0},{"$f":"'OB6 - Harmonogram rekapitulace'!Z8","v":0},{"$f":"'OB6 - Harmonogram rekapitulace'!AA8","v":0},{"$f":"'OB6 - Harmonogram rekapitulace'!AB8","v":0},{"$f":"'OB6 - Harmonogram rekapitulace'!AC8","v":0},{"$f":"'OB6 - Harmonogram rekapitulace'!AD8","v":0},{"$f":"'OB6 - Harmonogram rekapitulace'!AE8","v":0},{"$f":"'OB6 - Harmonogram rekapitulace'!AF8","v":0},{"$f":"'OB6 - Harmonogram rekapitulace'!AG8","v":0},{"$f":"'OB6 - Harmonogram rekapitulace'!AH8","v":0},{"$f":"'OB6 - Harmonogram rekapitulace'!AI8","v":0},{"$f":"'OB6 - Harmonogram rekapitulace'!AJ8","v":0},{"$f":"'OB6 - Harmonogram rekapitulace'!AK8","v":0},{"$f":"'OB6 - Harmonogram rekapitulace'!AL8","v":0},{"$f":"'OB6 - Harmonogram rekapitulace'!AM8","v":0},{"$f":"'OB6 - Harmonogram rekapitulace'!AN8","v":0},{"$f":"'OB6 - Harmonogram rekapitulace'!AO8","v":0},{"$f":"'OB6 - Harmonogram rekapitulace'!AP8","v":0},{"$f":"'OB6 - Harmonogram rekapitulace'!AQ8","v":0},{"$f":"'OB6 - Harmonogram rekapitulace'!AR8","v":0},{"$f":"'OB6 - Harmonogram rekapitulace'!AS8","v":0},{"$f":"'OB6 - Harmonogram rekapitulace'!AT8","v":0},{"$f":"'OB6 - Harmonogram rekapitulace'!AU8","v":0},{"$f":"'OB6 - Harmonogram rekapitulace'!AV8","v":0},{"$f":"'OB6 - Harmonogram rekapitulace'!AW8","v":0}]
["SO 101 / SO 106","Příjem a úprava dřevní štěpky / Elektrorozvodna hospdářství dřevní štěpky ","I.Etapa",{"$f":"'OB6 - Harmonogram rekapitulace'!I10","v":0},{"$f":"'OB6 - Harmonogram rekapitulace'!J10","v":0},{"$f":"'OB6 - Harmonogram rekapitulace'!K10","v":0},{"$f":"'OB6 - Harmonogram rekapitulace'!L10","v":0},{"$f":"'OB6 - Harmonogram rekapitulace'!M10","v":0},{"$f":"'OB6 - Harmonogram rekapitulace'!N10","v":0},{"$f":"'OB6 - Harmonogram rekapitulace'!O10","v":0},{"$f":"'OB6 - Harmonogram rekapitulace'!P10","v":0},{"$f":"'OB6 - Harmonogram rekapitulace'!Q10","v":0},{"$f":"'OB6 - Harmonogram rekapitulace'!R10","v":0},{"$f":"'OB6 - Harmonogram rekapitulace'!S10","v":0},{"$f":"'OB6 - Harmonogram rekapitulace'!T10","v":0},{"$f":"'OB6 - Harmonogram rekapitulace'!U10","v":0},{"$f":"'OB6 - Harmonogram rekapitulace'!V10","v":0},{"$f":"'OB6 - Harmonogram rekapitulace'!W10","v":0},{"$f":"'OB6 - Harmonogram rekapitulace'!X10","v":0},{"$f":"'OB6 - Harmonogram rekapitulace'!Y10","v":0},{"$f":"'OB6 - Harmonogram rekapitulace'!Z10","v":0},{"$f":"'OB6 - Harmonogram rekapitulace'!AA10","v":0},{"$f":"'OB6 - Harmonogram rekapitulace'!AB10","v":0},{"$f":"'OB6 - Harmonogram rekapitulace'!AC10","v":0},{"$f":"'OB6 - Harmonogram rekapitulace'!AD10","v":0},{"$f":"'OB6 - Harmonogram rekapitulace'!AE10","v":0},{"$f":"'OB6 - Harmonogram rekapitulace'!AF10","v":0},{"$f":"'OB6 - Harmonogram rekapitulace'!AG10","v":0},{"$f":"'OB6 - Harmonogram rekapitulace'!AH10","v":0},{"$f":"'OB6 - Harmonogram rekapitulace'!AI10","v":0},{"$f":"'OB6 - Harmonogram rekapitulace'!AJ10","v":0},{"$f":"'OB6 - Harmonogram rekapitulace'!AK10","v":0},{"$f":"'OB6 - Harmonogram rekapitulace'!AL10","v":0},{"$f":"'OB6 - Harmonogram rekapitulace'!AM10","v":0},{"$f":"'OB6 - Harmonogram rekapitulace'!AN10","v":0},{"$f":"'OB6 - Harmonogram rekapitulace'!AO10","v":0},{"$f":"'OB6 - Harmonogram rekapitulace'!AP10","v":0},{"$f":"'OB6 - Harmonogram rekapitulace'!AQ10","v":0},{"$f":"'OB6 - Harmonogram rekapitulace'!AR10","v":0},{"$f":"'OB6 - Harmonogram rekapitulace'!AS10","v":0},{"$f":"'OB6 - Harmonogram rekapitulace'!AT10","v":0},{"$f":"'OB6 - Harmonogram rekapitulace'!AU10","v":0},{"$f":"'OB6 - Harmonogram rekapitulace'!AV10","v":0},{"$f":"'OB6 - Harmonogram rekapitulace'!AW10","v":0}]
["SO 102.2","Sklad dřevní štěpky","I.Etapa",{"$f":"'OB6 - Harmonogram rekapitulace'!I12","v":0},{"$f":"'OB6 - Harmonogram rekapitulace'!J12","v":0},{"$f":"'OB6 - Harmonogram rekapitulace'!K12","v":0},{"$f":"'OB6 - Harmonogram rekapitulace'!L12","v":0},{"$f":"'OB6 - Harmonogram rekapitulace'!M12","v":0},{"$f":"'OB6 - Harmonogram rekapitulace'!N12","v":0},{"$f":"'OB6 - Harmonogram rekapitulace'!O12","v":0},{"$f":"'OB6 - Harmonogram rekapitulace'!P12","v":0},{"$f":"'OB6 - Harmonogram rekapitulace'!Q12","v":0},{"$f":"'OB6 - Harmonogram rekapitulace'!R12","v":0},{"$f":"'OB6 - Harmonogram rekapitulace'!S12","v":0},{"$f":"'OB6 - Harmonogram rekapitulace'!T12","v":0},{"$f":"'OB6 - Harmonogram rekapitulace'!U12","v":0},{"$f":"'OB6 - Harmonogram rekapitulace'!V12","v":0},{"$f":"'OB6 - Harmonogram rekapitulace'!W12","v":0},{"$f":"'OB6 - Harmonogram rekapitulace'!X12","v":0},{"$f":"'OB6 - Harmonogram rekapitulace'!Y12","v":0},{"$f":"'OB6 - Harmonogram rekapitulace'!Z12","v":0},{"$f":"'OB6 - Harmonogram rekapitulace'!AA12","v":0},{"$f":"'OB6 - Harmonogram rekapitulace'!AB12","v":0},{"$f":"'OB6 - Harmonogram rekapitulace'!AC12","v":0},{"$f":"'OB6 - Harmonogram rekapitulace'!AD12","v":0},{"$f":"'OB6 - Harmonogram rekapitulace'!AE12","v":0},{"$f":"'OB6 - Harmonogram rekapitulace'!AF12","v":0},{"$f":"'OB6 - Harmonogram rekapitulace'!AG12","v":0},{"$f":"'OB6 - Harmonogram rekapitulace'!AH12","v":0},{"$f":"'OB6 - Harmonogram rekapitulace'!AI12","v":0},{"$f":"'OB6 - Harmonogram rekapitulace'!AJ12","v":0},{"$f":"'OB6 - Harmonogram rekapitulace'!AK12","v":0},{"$f":"'OB6 - Harmonogram rekapitulace'!AL12","v":0},{"$f":"'OB6 - Harmonogram rekapitulace'!AM12","v":0},{"$f":"'OB6 - Harmonogram rekapitulace'!AN12","v":0},{"$f":"'OB6 - Harmonogram rekapitulace'!AO12","v":0},{"$f":"'OB6 - Harmonogram rekapitulace'!AP12","v":0},{"$f":"'OB6 - Harmonogram rekapitulace'!AQ12","v":0},{"$f":"'OB6 - Harmonogram rekapitulace'!AR12","v":0},{"$f":"'OB6 - Harmonogram rekapitulace'!AS12","v":0},{"$f":"'OB6 - Harmonogram rekapitulace'!AT12","v":0},{"$f":"'OB6 - Harmonogram rekapitulace'!AU12","v":0},{"$f":"'OB6 - Harmonogram rekapitulace'!AV12","v":0},{"$f":"'OB6 - Harmonogram rekapitulace'!AW12","v":0}]
["SO 103.2 / SO 112","Doprava dřevní štěpky do skladu / Vzorkovna","I.Etapa",{"$f":"'OB6 - Harmonogram rekapitulace'!I14","v":0},{"$f":"'OB6 - Harmonogram rekapitulace'!J14","v":0},{"$f":"'OB6 - Harmonogram rekapitulace'!K14","v":0},{"$f":"'OB6 - Harmonogram rekapitulace'!L14","v":0},{"$f":"'OB6 - Harmonogram rekapitulace'!M14","v":0},{"$f":"'OB6 - Harmonogram rekapitulace'!N14","v":0},{"$f":"'OB6 - Harmonogram rekapitulace'!O14","v":0},{"$f":"'OB6 - Harmonogram rekapitulace'!P14","v":0},{"$f":"'OB6 - Harmonogram rekapitulace'!Q14","v":0},{"$f":"'OB6 - Harmonogram rekapitulace'!R14","v":0},{"$f":"'OB6 - Harmonogram rekapitulace'!S14","v":0},{"$f":"'OB6 - Harmonogram rekapitulace'!T14","v":0},{"$f":"'OB6 - Harmonogram rekapitulace'!U14","v":0},{"$f":"'OB6 - Harmonogram rekapitulace'!V14","v":0},{"$f":"'OB6 - Harmonogram rekapitulace'!W14","v":0},{"$f":"'OB6 - Harmonogram rekapitulace'!X14","v":0},{"$f":"'OB6 - Harmonogram rekapitulace'!Y14","v":0},{"$f":"'OB6 - Harmonogram rekapitulace'!Z14","v":0},{"$f":"'OB6 - Harmonogram rekapitulace'!AA14","v":0},{"$f":"'OB6 - Harmonogram rekapitulace'!AB14","v":0},{"$f":"'OB6 - Harmonogram rekapitulace'!AC14","v":0},{"$f":"'OB6 - Harmonogram rekapitulace'!AD14","v":0},{"$f":"'OB6 - Harmonogram rekapitulace'!AE14","v":0},{"$f":"'OB6 - Harmonogram rekapitulace'!AF14","v":0},{"$f":"'OB6 - Harmonogram rekapitulace'!AG14","v":0},{"$f":"'OB6 - Harmonogram rekapitulace'!AH14","v":0},{"$f":"'OB6 - Harmonogram rekapitulace'!AI14","v":0},{"$f":"'OB6 - Harmonogram rekapitulace'!AJ14","v":0},{"$f":"'OB6 - Harmonogram rekapitulace'!AK14","v":0},{"$f":"'OB6 - Harmonogram rekapitulace'!AL14","v":0},{"$f":"'OB6 - Harmonogram rekapitulace'!AM14","v":0},{"$f":"'OB6 - Harmonogram rekapitulace'!AN14","v":0},{"$f":"'OB6 - Harmonogram rekapitulace'!AO14","v":0},{"$f":"'OB6 - Harmonogram rekapitulace'!AP14","v":0},{"$f":"'OB6 - Harmonogram rekapitulace'!AQ14","v":0},{"$f":"'OB6 - Harmonogram rekapitulace'!AR14","v":0},{"$f":"'OB6 - Harmonogram rekapitulace'!AS14","v":0},{"$f":"'OB6 - Harmonogram rekapitulace'!AT14","v":0},{"$f":"'OB6 - Harmonogram rekapitulace'!AU14","v":0},{"$f":"'OB6 - Harmonogram rekapitulace'!AV14","v":0},{"$f":"'OB6 - Harmonogram rekapitulace'!AW14","v":0}]
["SO 104.2","Doprava dřevní štěpky do kotelen","I.Etapa",{"$f":"'OB6 - Harmonogram rekapitulace'!I16","v":0},{"$f":"'OB6 - Harmonogram rekapitulace'!J16","v":0},{"$f":"'OB6 - Harmonogram rekapitulace'!K16","v":0},{"$f":"'OB6 - Harmonogram rekapitulace'!L16","v":0},{"$f":"'OB6 - Harmonogram rekapitulace'!M16","v":0},{"$f":"'OB6 - Harmonogram rekapitulace'!N16","v":0},{"$f":"'OB6 - Harmonogram rekapitulace'!O16","v":0},{"$f":"'OB6 - Harmonogram rekapitulace'!P16","v":0},{"$f":"'OB6 - Harmonogram rekapitulace'!Q16","v":0},{"$f":"'OB6 - Harmonogram rekapitulace'!R16","v":0},{"$f":"'OB6 - Harmonogram rekapitulace'!S16","v":0},{"$f":"'OB6 - Harmonogram rekapitulace'!T16","v":0},{"$f":"'OB6 - Harmonogram rekapitulace'!U16","v":0},{"$f":"'OB6 - Harmonogram rekapitulace'!V16","v":0},{"$f":"'OB6 - Harmonogram rekapitulace'!W16","v":0},{"$f":"'OB6 - Harmonogram rekapitulace'!X16","v":0},{"$f":"'OB6 - Harmonogram rekapitulace'!Y16","v":0},{"$f":"'OB6 - Harmonogram rekapitulace'!Z16","v":0},{"$f":"'OB6 - Harmonogram rekapitulace'!AA16","v":0},{"$f":"'OB6 - Harmonogram rekapitulace'!AB16","v":0},{"$f":"'OB6 - Harmonogram rekapitulace'!AC16","v":0},{"$f":"'OB6 - Harmonogram rekapitulace'!AD16","v":0},{"$f":"'OB6 - Harmonogram rekapitulace'!AE16","v":0},{"$f":"'OB6 - Harmonogram rekapitulace'!AF16","v":0},{"$f":"'OB6 - Harmonogram rekapitulace'!AG16","v":0},{"$f":"'OB6 - Harmonogram rekapitulace'!AH16","v":0},{"$f":"'OB6 - Harmonogram rekapitulace'!AI16","v":0},{"$f":"'OB6 - Harmonogram rekapitulace'!AJ16","v":0},{"$f":"'OB6 - Harmonogram rekapitulace'!AK16","v":0},{"$f":"'OB6 - Harmonogram rekapitulace'!AL16","v":0},{"$f":"'OB6 - Harmonogram rekapitulace'!AM16","v":0},{"$f":"'OB6 - Harmonogram rekapitulace'!AN16","v":0},{"$f":"'OB6 - Harmonogram rekapitulace'!AO16","v":0},{"$f":"'OB6 - Harmonogram rekapitulace'!AP16","v":0},{"$f":"'OB6 - Harmonogram rekapitulace'!AQ16","v":0},{"$f":"'OB6 - Harmonogram rekapitulace'!AR16","v":0},{"$f":"'OB6 - Harmonogram rekapitulace'!AS16","v":0},{"$f":"'OB6 - Harmonogram rekapitulace'!AT16","v":0},{"$f":"'OB6 - Harmonogram rekapitulace'!AU16","v":0},{"$f":"'OB6 - Harmonogram rekapitulace'!AV16","v":0},{"$f":"'OB6 - Harmonogram rekapitulace'!AW16","v":0}]
["SO 105","SHZ - strojovna a základy nádrže ","I.Etapa",{"$f":"'OB6 - Harmonogram rekapitulace'!I18","v":0},{"$f":"'OB6 - Harmonogram rekapitulace'!J18","v":0},{"$f":"'OB6 - Harmonogram rekapitulace'!K18","v":0},{"$f":"'OB6 - Harmonogram rekapitulace'!L18","v":0},{"$f":"'OB6 - Harmonogram rekapitulace'!M18","v":0},{"$f":"'OB6 - Harmonogram rekapitulace'!N18","v":0},{"$f":"'OB6 - Harmonogram rekapitulace'!O18","v":0},{"$f":"'OB6 - Harmonogram rekapitulace'!P18","v":0},{"$f":"'OB6 - Harmonogram rekapitulace'!Q18","v":0},{"$f":"'OB6 - Harmonogram rekapitulace'!R18","v":0},{"$f":"'OB6 - Harmonogram rekapitulace'!S18","v":0},{"$f":"'OB6 - Harmonogram rekapitulace'!T18","v":0},{"$f":"'OB6 - Harmonogram rekapitulace'!U18","v":0},{"$f":"'OB6 - Harmonogram rekapitulace'!V18","v":0},{"$f":"'OB6 - Harmonogram rekapitulace'!W18","v":0},{"$f":"'OB6 - Harmonogram rekapitulace'!X18","v":0},{"$f":"'OB6 - Harmonogram rekapitulace'!Y18","v":0},{"$f":"'OB6 - Harmonogram rekapitulace'!Z18","v":0},{"$f":"'OB6 - Harmonogram rekapitulace'!AA18","v":0},{"$f":"'OB6 - Harmonogram rekapitulace'!AB18","v":0},{"$f":"'OB6 - Harmonogram rekapitulace'!AC18","v":0},{"$f":"'OB6 - Harmonogram rekapitulace'!AD18","v":0},{"$f":"'OB6 - Harmonogram rekapitulace'!AE18","v":0},{"$f":"'OB6 - Harmonogram rekapitulace'!AF18","v":0},{"$f":"'OB6 - Harmonogram rekapitulace'!AG18","v":0},{"$f":"'OB6 - Harmonogram rekapitulace'!AH18","v":0},{"$f":"'OB6 - Harmonogram rekapitulace'!AI18","v":0},{"$f":"'OB6 - Harmonogram rekapitulace'!AJ18","v":0},{"$f":"'OB6 - Harmonogram rekapitulace'!AK18","v":0},{"$f":"'OB6 - Harmonogram rekapitulace'!AL18","v":0},{"$f":"'OB6 - Harmonogram rekapitulace'!AM18","v":0},{"$f":"'OB6 - Harmonogram rekapitulace'!AN18","v":0},{"$f":"'OB6 - Harmonogram rekapitulace'!AO18","v":0},{"$f":"'OB6 - Harmonogram rekapitulace'!AP18","v":0},{"$f":"'OB6 - Harmonogram rekapitulace'!AQ18","v":0},{"$f":"'OB6 - Harmonogram rekapitulace'!AR18","v":0},{"$f":"'OB6 - Harmonogram rekapitulace'!AS18","v":0},{"$f":"'OB6 - Harmonogram rekapitulace'!AT18","v":0},{"$f":"'OB6 - Harmonogram rekapitulace'!AU18","v":0},{"$f":"'OB6 - Harmonogram rekapitulace'!AV18","v":0},{"$f":"'OB6 - Harmonogram rekapitulace'!AW18","v":0}]
["SO 109","Přesuvna vagonů","I.Etapa",{"$f":"'OB6 - Harmonogram rekapitulace'!I20","v":0},{"$f":"'OB6 - Harmonogram rekapitulace'!J20","v":0},{"$f":"'OB6 - Harmonogram rekapitulace'!K20","v":0},{"$f":"'OB6 - Harmonogram rekapitulace'!L20","v":0},{"$f":"'OB6 - Harmonogram rekapitulace'!M20","v":0},{"$f":"'OB6 - Harmonogram rekapitulace'!N20","v":0},{"$f":"'OB6 - Harmonogram rekapitulace'!O20","v":0},{"$f":"'OB6 - Harmonogram rekapitulace'!P20","v":0},{"$f":"'OB6 - Harmonogram rekapitulace'!Q20","v":0},{"$f":"'OB6 - Harmonogram rekapitulace'!R20","v":0},{"$f":"'OB6 - Harmonogram rekapitulace'!S20","v":0},{"$f":"'OB6 - Harmonogram rekapitulace'!T20","v":0},{"$f":"'OB6 - Harmonogram rekapitulace'!U20","v":0},{"$f":"'OB6 - Harmonogram rekapitulace'!V20","v":0},{"$f":"'OB6 - Harmonogram rekapitulace'!W20","v":0},{"$f":"'OB6 - Harmonogram rekapitulace'!X20","v":0},{"$f":"'OB6 - Harmonogram rekapitulace'!Y20","v":0},{"$f":"'OB6 - Harmonogram rekapitulace'!Z20","v":0},{"$f":"'OB6 - Harmonogram rekapitulace'!AA20","v":0},{"$f":"'OB6 - Harmonogram rekapitulace'!AB20","v":0},{"$f":"'OB6 - Harmonogram rekapitulace'!AC20","v":0},{"$f":"'OB6 - Harmonogram rekapitulace'!AD20","v":0},{"$f":"'OB6 - Harmonogram rekapitulace'!AE20","v":0},{"$f":"'OB6 - Harmonogram rekapitulace'!AF20","v":0},{"$f":"'OB6 - Harmonogram rekapitulace'!AG20","v":0},{"$f":"'OB6 - Harmonogram rekapitulace'!AH20","v":0},{"$f":"'OB6 - Harmonogram rekapitulace'!AI20","v":0},{"$f":"'OB6 - Harmonogram rekapitulace'!AJ20","v":0},{"$f":"'OB6 - Harmonogram rekapitulace'!AK20","v":0},{"$f":"'OB6 - Harmonogram rekapitulace'!AL20","v":0},{"$f":"'OB6 - Harmonogram rekapitulace'!AM20","v":0},{"$f":"'OB6 - Harmonogram rekapitulace'!AN20","v":0},{"$f":"'OB6 - Harmonogram rekapitulace'!AO20","v":0},{"$f":"'OB6 - Harmonogram rekapitulace'!AP20","v":0},{"$f":"'OB6 - Harmonogram rekapitulace'!AQ20","v":0},{"$f":"'OB6 - Harmonogram rekapitulace'!AR20","v":0},{"$f":"'OB6 - Harmonogram rekapitulace'!AS20","v":0},{"$f":"'OB6 - Harmonogram rekapitulace'!AT20","v":0},{"$f":"'OB6 - Harmonogram rekapitulace'!AU20","v":0},{"$f":"'OB6 - Harmonogram rekapitulace'!AV20","v":0},{"$f":"'OB6 - Harmonogram rekapitulace'!AW20","v":0}]
["SO 113","Silniční váhy ","I.Etapa",{"$f":"'OB6 - Harmonogram rekapitulace'!I22","v":0},{"$f":"'OB6 - Harmonogram rekapitulace'!J22","v":0},{"$f":"'OB6 - Harmonogram rekapitulace'!K22","v":0},{"$f":"'OB6 - Harmonogram rekapitulace'!L22","v":0},{"$f":"'OB6 - Harmonogram rekapitulace'!M22","v":0},{"$f":"'OB6 - Harmonogram rekapitulace'!N22","v":0},{"$f":"'OB6 - Harmonogram rekapitulace'!O22","v":0},{"$f":"'OB6 - Harmonogram rekapitulace'!P22","v":0},{"$f":"'OB6 - Harmonogram rekapitulace'!Q22","v":0},{"$f":"'OB6 - Harmonogram rekapitulace'!R22","v":0},{"$f":"'OB6 - Harmonogram rekapitulace'!S22","v":0},{"$f":"'OB6 - Harmonogram rekapitulace'!T22","v":0},{"$f":"'OB6 - Harmonogram rekapitulace'!U22","v":0},{"$f":"'OB6 - Harmonogram rekapitulace'!V22","v":0},{"$f":"'OB6 - Harmonogram rekapitulace'!W22","v":0},{"$f":"'OB6 - Harmonogram rekapitulace'!X22","v":0},{"$f":"'OB6 - Harmonogram rekapitulace'!Y22","v":0},{"$f":"'OB6 - Harmonogram rekapitulace'!Z22","v":0},{"$f":"'OB6 - Harmonogram rekapitulace'!AA22","v":0},{"$f":"'OB6 - Harmonogram rekapitulace'!AB22","v":0},{"$f":"'OB6 - Harmonogram rekapitulace'!AC22","v":0},{"$f":"'OB6 - Harmonogram rekapitulace'!AD22","v":0},{"$f":"'OB6 - Harmonogram rekapitulace'!AE22","v":0},{"$f":"'OB6 - Harmonogram rekapitulace'!AF22","v":0},{"$f":"'OB6 - Harmonogram rekapitulace'!AG22","v":0},{"$f":"'OB6 - Harmonogram rekapitulace'!AH22","v":0},{"$f":"'OB6 - Harmonogram rekapitulace'!AI22","v":0},{"$f":"'OB6 - Harmonogram rekapitulace'!AJ22","v":0},{"$f":"'OB6 - Harmonogram rekapitulace'!AK22","v":0},{"$f":"'OB6 - Harmonogram rekapitulace'!AL22","v":0},{"$f":"'OB6 - Harmonogram rekapitulace'!AM22","v":0},{"$f":"'OB6 - Harmonogram rekapitulace'!AN22","v":0},{"$f":"'OB6 - Harmonogram rekapitulace'!AO22","v":0},{"$f":"'OB6 - Harmonogram rekapitulace'!AP22","v":0},{"$f":"'OB6 - Harmonogram rekapitulace'!AQ22","v":0},{"$f":"'OB6 - Harmonogram rekapitulace'!AR22","v":0},{"$f":"'OB6 - Harmonogram rekapitulace'!AS22","v":0},{"$f":"'OB6 - Harmonogram rekapitulace'!AT22","v":0},{"$f":"'OB6 - Harmonogram rekapitulace'!AU22","v":0},{"$f":"'OB6 - Harmonogram rekapitulace'!AV22","v":0},{"$f":"'OB6 - Harmonogram rekapitulace'!AW22","v":0}]
["SO 201.2 / SO 202.2","Kotelna K20 + Partie za kotlem K20 - čištění spalin - viz SO 201 (OB 6)","I.Etapa",{"$f":"'OB6 - Harmonogram rekapitulace'!I24","v":0},{"$f":"'OB6 - Harmonogram rekapitulace'!J24","v":0},{"$f":"'OB6 - Harmonogram rekapitulace'!K24","v":0},{"$f":"'OB6 - Harmonogram rekapitulace'!L24","v":0},{"$f":"'OB6 - Harmonogram rekapitulace'!M24","v":0},{"$f":"'OB6 - Harmonogram rekapitulace'!N24","v":0},{"$f":"'OB6 - Harmonogram rekapitulace'!O24","v":0},{"$f":"'OB6 - Harmonogram rekapitulace'!P24","v":0},{"$f":"'OB6 - Harmonogram rekapitulace'!Q24","v":0},{"$f":"'OB6 - Harmonogram rekapitulace'!R24","v":0},{"$f":"'OB6 - Harmonogram rekapitulace'!S24","v":0},{"$f":"'OB6 - Harmonogram rekapitulace'!T24","v":0},{"$f":"'OB6 - Harmonogram rekapitulace'!U24","v":0},{"$f":"'OB6 - Harmonogram rekapitulace'!V24","v":0},{"$f":"'OB6 - Harmonogram rekapitulace'!W24","v":0},{"$f":"'OB6 - Harmonogram rekapitulace'!X24","v":0},{"$f":"'OB6 - Harmonogram rekapitulace'!Y24","v":0},{"$f":"'OB6 - Harmonogram rekapitulace'!Z24","v":0},{"$f":"'OB6 - Harmonogram rekapitulace'!AA24","v":0},{"$f":"'OB6 - Harmonogram rekapitulace'!AB24","v":0},{"$f":"'OB6 - Harmonogram rekapitulace'!AC24","v":0},{"$f":"'OB6 - Harmonogram rekapitulace'!AD24","v":0},{"$f":"'OB6 - Harmonogram rekapitulace'!AE24","v":0},{"$f":"'OB6 - Harmonogram rekapitulace'!AF24","v":0},{"$f":"'OB6 - Harmonogram rekapitulace'!AG24","v":0},{"$f":"'OB6 - Harmonogram rekapitulace'!AH24","v":0},{"$f":"'OB6 - Harmonogram rekapitulace'!AI24","v":0},{"$f":"'OB6 - Harmonogram rekapitulace'!AJ24","v":0},{"$f":"'OB6 - Harmonogram rekapitulace'!AK24","v":0},{"$f":"'OB6 - Harmonogram rekapitulace'!AL24","v":0},{"$f":"'OB6 - Harmonogram rekapitulace'!AM24","v":0},{"$f":"'OB6 - Harmonogram rekapitulace'!AN24","v":0},{"$f":"'OB6 - Harmonogram rekapitulace'!AO24","v":0},{"$f":"'OB6 - Harmonogram rekapitulace'!AP24","v":0},{"$f":"'OB6 - Harmonogram rekapitulace'!AQ24","v":0},{"$f":"'OB6 - Harmonogram rekapitulace'!AR24","v":0},{"$f":"'OB6 - Harmonogram rekapitulace'!AS24","v":0},{"$f":"'OB6 - Harmonogram rekapitulace'!AT24","v":0},{"$f":"'OB6 - Harmonogram rekapitulace'!AU24","v":0},{"$f":"'OB6 - Harmonogram rekapitulace'!AV24","v":0},{"$f":"'OB6 - Harmonogram rekapitulace'!AW24","v":0}]
["SO 204.2 / SO 205.2","Vnější kouřovody - základy a konstrukce (OB 6) – spodní stavba + Odpopílkování ","I.Etapa",{"$f":"'OB6 - Harmonogram rekapitulace'!I26","v":0},{"$f":"'OB6 - Harmonogram rekapitulace'!J26","v":0},{"$f":"'OB6 - Harmonogram rekapitulace'!K26","v":0},{"$f":"'OB6 - Harmonogram rekapitulace'!L26","v":0},{"$f":"'OB6 - Harmonogram rekapitulace'!M26","v":0},{"$f":"'OB6 - Harmonogram rekapitulace'!N26","v":0},{"$f":"'OB6 - Harmonogram rekapitulace'!O26","v":0},{"$f":"'OB6 - Harmonogram rekapitulace'!P26","v":0},{"$f":"'OB6 - Harmonogram rekapitulace'!Q26","v":0},{"$f":"'OB6 - Harmonogram rekapitulace'!R26","v":0},{"$f":"'OB6 - Harmonogram rekapitulace'!S26","v":0},{"$f":"'OB6 - Harmonogram rekapitulace'!T26","v":0},{"$f":"'OB6 - Harmonogram rekapitulace'!U26","v":0},{"$f":"'OB6 - Harmonogram rekapitulace'!V26","v":0},{"$f":"'OB6 - Harmonogram rekapitulace'!W26","v":0},{"$f":"'OB6 - Harmonogram rekapitulace'!X26","v":0},{"$f":"'OB6 - Harmonogram rekapitulace'!Y26","v":0},{"$f":"'OB6 - Harmonogram rekapitulace'!Z26","v":0},{"$f":"'OB6 - Harmonogram rekapitulace'!AA26","v":0},{"$f":"'OB6 - Harmonogram rekapitulace'!AB26","v":0},{"$f":"'OB6 - Harmonogram rekapitulace'!AC26","v":0},{"$f":"'OB6 - Harmonogram rekapitulace'!AD26","v":0},{"$f":"'OB6 - Harmonogram rekapitulace'!AE26","v":0},{"$f":"'OB6 - Harmonogram rekapitulace'!AF26","v":0},{"$f":"'OB6 - Harmonogram rekapitulace'!AG26","v":0},{"$f":"'OB6 - Harmonogram rekapitulace'!AH26","v":0},{"$f":"'OB6 - Harmonogram rekapitulace'!AI26","v":0},{"$f":"'OB6 - Harmonogram rekapitulace'!AJ26","v":0},{"$f":"'OB6 - Harmonogram rekapitulace'!AK26","v":0},{"$f":"'OB6 - Harmonogram rekapitulace'!AL26","v":0},{"$f":"'OB6 - Harmonogram rekapitulace'!AM26","v":0},{"$f":"'OB6 - Harmonogram rekapitulace'!AN26","v":0},{"$f":"'OB6 - Harmonogram rekapitulace'!AO26","v":0},{"$f":"'OB6 - Harmonogram rekapitulace'!AP26","v":0},{"$f":"'OB6 - Harmonogram rekapitulace'!AQ26","v":0},{"$f":"'OB6 - Harmonogram rekapitulace'!AR26","v":0},{"$f":"'OB6 - Harmonogram rekapitulace'!AS26","v":0},{"$f":"'OB6 - Harmonogram rekapitulace'!AT26","v":0},{"$f":"'OB6 - Harmonogram rekapitulace'!AU26","v":0},{"$f":"'OB6 - Harmonogram rekapitulace'!AV26","v":0},{"$f":"'OB6 - Harmonogram rekapitulace'!AW26","v":0}]
["IO 301","Komunikace a zpevněné a manipulační plochy 1","I.Etapa",{"$f":"'OB6 - Harmonogram rekapitulace'!I28","v":0},{"$f":"'OB6 - Harmonogram rekapitulace'!J28","v":0},{"$f":"'OB6 - Harmonogram rekapitulace'!K28","v":0},{"$f":"'OB6 - Harmonogram rekapitulace'!L28","v":0},{"$f":"'OB6 - Harmonogram rekapitulace'!M28","v":0},{"$f":"'OB6 - Harmonogram rekapitulace'!N28","v":0},{"$f":"'OB6 - Harmonogram rekapitulace'!O28","v":0},{"$f":"'OB6 - Harmonogram rekapitulace'!P28","v":0},{"$f":"'OB6 - Harmonogram rekapitulace'!Q28","v":0},{"$f":"'OB6 - Harmonogram rekapitulace'!R28","v":0},{"$f":"'OB6 - Harmonogram rekapitulace'!S28","v":0},{"$f":"'OB6 - Harmonogram rekapitulace'!T28","v":0},{"$f":"'OB6 - Harmonogram rekapitulace'!U28","v":0},{"$f":"'OB6 - Harmonogram rekapitulace'!V28","v":0},{"$f":"'OB6 - Harmonogram rekapitulace'!W28","v":0},{"$f":"'OB6 - Harmonogram rekapitulace'!X28","v":0},{"$f":"'OB6 - Harmonogram rekapitulace'!Y28","v":0},{"$f":"'OB6 - Harmonogram rekapitulace'!Z28","v":0},{"$f":"'OB6 - Harmonogram rekapitulace'!AA28","v":0},{"$f":"'OB6 - Harmonogram rekapitulace'!AB28","v":0},{"$f":"'OB6 - Harmonogram rekapitulace'!AC28","v":0},{"$f":"'OB6 - Harmonogram rekapitulace'!AD28","v":0},{"$f":"'OB6 - Harmonogram rekapitulace'!AE28","v":0},{"$f":"'OB6 - Harmonogram rekapitulace'!AF28","v":0},{"$f":"'OB6 - Harmonogram rekapitulace'!AG28","v":0},{"$f":"'OB6 - Harmonogram rekapitulace'!AH28","v":0},{"$f":"'OB6 - Harmonogram rekapitulace'!AI28","v":0},{"$f":"'OB6 - Harmonogram rekapitulace'!AJ28","v":0},{"$f":"'OB6 - Harmonogram rekapitulace'!AK28","v":0},{"$f":"'OB6 - Harmonogram rekapitulace'!AL28","v":0},{"$f":"'OB6 - Harmonogram rekapitulace'!AM28","v":0},{"$f":"'OB6 - Harmonogram rekapitulace'!AN28","v":0},{"$f":"'OB6 - Harmonogram rekapitulace'!AO28","v":0},{"$f":"'OB6 - Harmonogram rekapitulace'!AP28","v":0},{"$f":"'OB6 - Harmonogram rekapitulace'!AQ28","v":0},{"$f":"'OB6 - Harmonogram rekapitulace'!AR28","v":0},{"$f":"'OB6 - Harmonogram rekapitulace'!AS28","v":0},{"$f":"'OB6 - Harmonogram rekapitulace'!AT28","v":0},{"$f":"'OB6 - Harmonogram rekapitulace'!AU28","v":0},{"$f":"'OB6 - Harmonogram rekapitulace'!AV28","v":0},{"$f":"'OB6 - Harmonogram rekapitulace'!AW28","v":0}]
["IO 302","Kanalizace","I.Etapa",{"$f":"'OB6 - Harmonogram rekapitulace'!I30","v":0},{"$f":"'OB6 - Harmonogram rekapitulace'!J30","v":0},{"$f":"'OB6 - Harmonogram rekapitulace'!K30","v":0},{"$f":"'OB6 - Harmonogram rekapitulace'!L30","v":0},{"$f":"'OB6 - Harmonogram rekapitulace'!M30","v":0},{"$f":"'OB6 - Harmonogram rekapitulace'!N30","v":0},{"$f":"'OB6 - Harmonogram rekapitulace'!O30","v":0},{"$f":"'OB6 - Harmonogram rekapitulace'!P30","v":0},{"$f":"'OB6 - Harmonogram rekapitulace'!Q30","v":0},{"$f":"'OB6 - Harmonogram rekapitulace'!R30","v":0},{"$f":"'OB6 - Harmonogram rekapitulace'!S30","v":0},{"$f":"'OB6 - Harmonogram rekapitulace'!T30","v":0},{"$f":"'OB6 - Harmonogram rekapitulace'!U30","v":0},{"$f":"'OB6 - Harmonogram rekapitulace'!V30","v":0},{"$f":"'OB6 - Harmonogram rekapitulace'!W30","v":0},{"$f":"'OB6 - Harmonogram rekapitulace'!X30","v":0},{"$f":"'OB6 - Harmonogram rekapitulace'!Y30","v":0},{"$f":"'OB6 - Harmonogram rekapitulace'!Z30","v":0},{"$f":"'OB6 - Harmonogram rekapitulace'!AA30","v":0},{"$f":"'OB6 - Harmonogram rekapitulace'!AB30","v":0},{"$f":"'OB6 - Harmonogram rekapitulace'!AC30","v":0},{"$f":"'OB6 - Harmonogram rekapitulace'!AD30","v":0},{"$f":"'OB6 - Harmonogram rekapitulace'!AE30","v":0},{"$f":"'OB6 - Harmonogram rekapitulace'!AF30","v":0},{"$f":"'OB6 - Harmonogram rekapitulace'!AG30","v":0},{"$f":"'OB6 - Harmonogram rekapitulace'!AH30","v":0},{"$f":"'OB6 - Harmonogram rekapitulace'!AI30","v":0},{"$f":"'OB6 - Harmonogram rekapitulace'!AJ30","v":0},{"$f":"'OB6 - Harmonogram rekapitulace'!AK30","v":0},{"$f":"'OB6 - Harmonogram rekapitulace'!AL30","v":0},{"$f":"'OB6 - Harmonogram rekapitulace'!AM30","v":0},{"$f":"'OB6 - Harmonogram rekapitulace'!AN30","v":0},{"$f":"'OB6 - Harmonogram rekapitulace'!AO30","v":0},{"$f":"'OB6 - Harmonogram rekapitulace'!AP30","v":0},{"$f":"'OB6 - Harmonogram rekapitulace'!AQ30","v":0},{"$f":"'OB6 - Harmonogram rekapitulace'!AR30","v":0},{"$f":"'OB6 - Harmonogram rekapitulace'!AS30","v":0},{"$f":"'OB6 - Harmonogram rekapitulace'!AT30","v":0},{"$f":"'OB6 - Harmonogram rekapitulace'!AU30","v":0},{"$f":"'OB6 - Harmonogram rekapitulace'!AV30","v":0},{"$f":"'OB6 - Harmonogram rekapitulace'!AW30","v":0}]
["IO 303","Venkovní osvětlení","I.Etapa",{"$f":"'OB6 - Harmonogram rekapitulace'!I32","v":0},{"$f":"'OB6 - Harmonogram rekapitulace'!J32","v":0},{"$f":"'OB6 - Harmonogram rekapitulace'!K32","v":0},{"$f":"'OB6 - Harmonogram rekapitulace'!L32","v":0},{"$f":"'OB6 - Harmonogram rekapitulace'!M32","v":0},{"$f":"'OB6 - Harmonogram rekapitulace'!N32","v":0},{"$f":"'OB6 - Harmonogram rekapitulace'!O32","v":0},{"$f":"'OB6 - Harmonogram rekapitulace'!P32","v":0},{"$f":"'OB6 - Harmonogram rekapitulace'!Q32","v":0},{"$f":"'OB6 - Harmonogram rekapitulace'!R32","v":0},{"$f":"'OB6 - Harmonogram rekapitulace'!S32","v":0},{"$f":"'OB6 - Harmonogram rekapitulace'!T32","v":0},{"$f":"'OB6 - Harmonogram rekapitulace'!U32","v":0},{"$f":"'OB6 - Harmonogram rekapitulace'!V32","v":0},{"$f":"'OB6 - Harmonogram rekapitulace'!W32","v":0},{"$f":"'OB6 - Harmonogram rekapitulace'!X32","v":0},{"$f":"'OB6 - Harmonogram rekapitulace'!Y32","v":0},{"$f":"'OB6 - Harmonogram rekapitulace'!Z32","v":0},{"$f":"'OB6 - Harmonogram rekapitulace'!AA32","v":0},{"$f":"'OB6 - Harmonogram rekapitulace'!AB32","v":0},{"$f":"'OB6 - Harmonogram rekapitulace'!AC32","v":0},{"$f":"'OB6 - Harmonogram rekapitulace'!AD32","v":0},{"$f":"'OB6 - Harmonogram rekapitulace'!AE32","v":0},{"$f":"'OB6 - Harmonogram rekapitulace'!AF32","v":0},{"$f":"'OB6 - Harmonogram rekapitulace'!AG32","v":0},{"$f":"'OB6 - Harmonogram rekapitulace'!AH32","v":0},{"$f":"'OB6 - Harmonogram rekapitulace'!AI32","v":0},{"$f":"'OB6 - Harmonogram rekapitulace'!AJ32","v":0},{"$f":"'OB6 - Harmonogram rekapitulace'!AK32","v":0},{"$f":"'OB6 - Harmonogram rekapitulace'!AL32","v":0},{"$f":"'OB6 - Harmonogram rekapitulace'!AM32","v":0},{"$f":"'OB6 - Harmonogram rekapitulace'!AN32","v":0},{"$f":"'OB6 - Harmonogram rekapitulace'!AO32","v":0},{"$f":"'OB6 - Harmonogram rekapitulace'!AP32","v":0},{"$f":"'OB6 - Harmonogram rekapitulace'!AQ32","v":0},{"$f":"'OB6 - Harmonogram rekapitulace'!AR32","v":0},{"$f":"'OB6 - Harmonogram rekapitulace'!AS32","v":0},{"$f":"'OB6 - Harmonogram rekapitulace'!AT32","v":0},{"$f":"'OB6 - Harmonogram rekapitulace'!AU32","v":0},{"$f":"'OB6 - Harmonogram rekapitulace'!AV32","v":0},{"$f":"'OB6 - Harmonogram rekapitulace'!AW32","v":0}]
["IO 304","Pitná voda","I.Etapa",{"$f":"'OB6 - Harmonogram rekapitulace'!I34","v":0},{"$f":"'OB6 - Harmonogram rekapitulace'!J34","v":0},{"$f":"'OB6 - Harmonogram rekapitulace'!K34","v":0},{"$f":"'OB6 - Harmonogram rekapitulace'!L34","v":0},{"$f":"'OB6 - Harmonogram rekapitulace'!M34","v":0},{"$f":"'OB6 - Harmonogram rekapitulace'!N34","v":0},{"$f":"'OB6 - Harmonogram rekapitulace'!O34","v":0},{"$f":"'OB6 - Harmonogram rekapitulace'!P34","v":0},{"$f":"'OB6 - Harmonogram rekapitulace'!Q34","v":0},{"$f":"'OB6 - Harmonogram rekapitulace'!R34","v":0},{"$f":"'OB6 - Harmonogram rekapitulace'!S34","v":0},{"$f":"'OB6 - Harmonogram rekapitulace'!T34","v":0},{"$f":"'OB6 - Harmonogram rekapitulace'!U34","v":0},{"$f":"'OB6 - Harmonogram rekapitulace'!V34","v":0},{"$f":"'OB6 - Harmonogram rekapitulace'!W34","v":0},{"$f":"'OB6 - Harmonogram rekapitulace'!X34","v":0},{"$f":"'OB6 - Harmonogram rekapitulace'!Y34","v":0},{"$f":"'OB6 - Harmonogram rekapitulace'!Z34","v":0},{"$f":"'OB6 - Harmonogram rekapitulace'!AA34","v":0},{"$f":"'OB6 - Harmonogram rekapitulace'!AB34","v":0},{"$f":"'OB6 - Harmonogram rekapitulace'!AC34","v":0},{"$f":"'OB6 - Harmonogram rekapitulace'!AD34","v":0},{"$f":"'OB6 - Harmonogram rekapitulace'!AE34","v":0},{"$f":"'OB6 - Harmonogram rekapitulace'!AF34","v":0},{"$f":"'OB6 - Harmonogram rekapitulace'!AG34","v":0},{"$f":"'OB6 - Harmonogram rekapitulace'!AH34","v":0},{"$f":"'OB6 - Harmonogram rekapitulace'!AI34","v":0},{"$f":"'OB6 - Harmonogram rekapitulace'!AJ34","v":0},{"$f":"'OB6 - Harmonogram rekapitulace'!AK34","v":0},{"$f":"'OB6 - Harmonogram rekapitulace'!AL34","v":0},{"$f":"'OB6 - Harmonogram rekapitulace'!AM34","v":0},{"$f":"'OB6 - Harmonogram rekapitulace'!AN34","v":0},{"$f":"'OB6 - Harmonogram rekapitulace'!AO34","v":0},{"$f":"'OB6 - Harmonogram rekapitulace'!AP34","v":0},{"$f":"'OB6 - Harmonogram rekapitulace'!AQ34","v":0},{"$f":"'OB6 - Harmonogram rekapitulace'!AR34","v":0},{"$f":"'OB6 - Harmonogram rekapitulace'!AS34","v":0},{"$f":"'OB6 - Harmonogram rekapitulace'!AT34","v":0},{"$f":"'OB6 - Harmonogram rekapitulace'!AU34","v":0},{"$f":"'OB6 - Harmonogram rekapitulace'!AV34","v":0},{"$f":"'OB6 - Harmonogram rekapitulace'!AW34","v":0}]
["IO 306","Průmyslová voda (vč. přesunu hydrantů)","I.Etapa",{"$f":"'OB6 - Harmonogram rekapitulace'!I36","v":0},{"$f":"'OB6 - Harmonogram rekapitulace'!J36","v":0},{"$f":"'OB6 - Harmonogram rekapitulace'!K36","v":0},{"$f":"'OB6 - Harmonogram rekapitulace'!L36","v":0},{"$f":"'OB6 - Harmonogram rekapitulace'!M36","v":0},{"$f":"'OB6 - Harmonogram rekapitulace'!N36","v":0},{"$f":"'OB6 - Harmonogram rekapitulace'!O36","v":0},{"$f":"'OB6 - Harmonogram rekapitulace'!P36","v":0},{"$f":"'OB6 - Harmonogram rekapitulace'!Q36","v":0},{"$f":"'OB6 - Harmonogram rekapitulace'!R36","v":0},{"$f":"'OB6 - Harmonogram rekapitulace'!S36","v":0},{"$f":"'OB6 - Harmonogram rekapitulace'!T36","v":0},{"$f":"'OB6 - Harmonogram rekapitulace'!U36","v":0},{"$f":"'OB6 - Harmonogram rekapitulace'!V36","v":0},{"$f":"'OB6 - Harmonogram rekapitulace'!W36","v":0},{"$f":"'OB6 - Harmonogram rekapitulace'!X36","v":0},{"$f":"'OB6 - Harmonogram rekapitulace'!Y36","v":0},{"$f":"'OB6 - Harmonogram rekapitulace'!Z36","v":0},{"$f":"'OB6 - Harmonogram rekapitulace'!AA36","v":0},{"$f":"'OB6 - Harmonogram rekapitulace'!AB36","v":0},{"$f":"'OB6 - Harmonogram rekapitulace'!AC36","v":0},{"$f":"'OB6 - Harmonogram rekapitulace'!AD36","v":0},{"$f":"'OB6 - Harmonogram rekapitulace'!AE36","v":0},{"$f":"'OB6 - Harmonogram rekapitulace'!AF36","v":0},{"$f":"'OB6 - Harmonogram rekapitulace'!AG36","v":0},{"$f":"'OB6 - Harmonogram rekapitulace'!AH36","v":0},{"$f":"'OB6 - Harmonogram rekapitulace'!AI36","v":0},{"$f":"'OB6 - Harmonogram rekapitulace'!AJ36","v":0},{"$f":"'OB6 - Harmonogram rekapitulace'!AK36","v":0},{"$f":"'OB6 - Harmonogram rekapitulace'!AL36","v":0},{"$f":"'OB6 - Harmonogram rekapitulace'!AM36","v":0},{"$f":"'OB6 - Harmonogram rekapitulace'!AN36","v":0},{"$f":"'OB6 - Harmonogram rekapitulace'!AO36","v":0},{"$f":"'OB6 - Harmonogram rekapitulace'!AP36","v":0},{"$f":"'OB6 - Harmonogram rekapitulace'!AQ36","v":0},{"$f":"'OB6 - Harmonogram rekapitulace'!AR36","v":0},{"$f":"'OB6 - Harmonogram rekapitulace'!AS36","v":0},{"$f":"'OB6 - Harmonogram rekapitulace'!AT36","v":0},{"$f":"'OB6 - Harmonogram rekapitulace'!AU36","v":0},{"$f":"'OB6 - Harmonogram rekapitulace'!AV36","v":0},{"$f":"'OB6 - Harmonogram rekapitulace'!AW36","v":0}]
["IO 307","Přeložky elektro a nové přípojky","I.Etapa",{"$f":"'OB6 - Harmonogram rekapitulace'!I38","v":0},{"$f":"'OB6 - Harmonogram rekapitulace'!J38","v":0},{"$f":"'OB6 - Harmonogram rekapitulace'!K38","v":0},{"$f":"'OB6 - Harmonogram rekapitulace'!L38","v":0},{"$f":"'OB6 - Harmonogram rekapitulace'!M38","v":0},{"$f":"'OB6 - Harmonogram rekapitulace'!N38","v":0},{"$f":"'OB6 - Harmonogram rekapitulace'!O38","v":0},{"$f":"'OB6 - Harmonogram rekapitulace'!P38","v":0},{"$f":"'OB6 - Harmonogram rekapitulace'!Q38","v":0},{"$f":"'OB6 - Harmonogram rekapitulace'!R38","v":0},{"$f":"'OB6 - Harmonogram rekapitulace'!S38","v":0},{"$f":"'OB6 - Harmonogram rekapitulace'!T38","v":0},{"$f":"'OB6 - Harmonogram rekapitulace'!U38","v":0},{"$f":"'OB6 - Harmonogram rekapitulace'!V38","v":0},{"$f":"'OB6 - Harmonogram rekapitulace'!W38","v":0},{"$f":"'OB6 - Harmonogram rekapitulace'!X38","v":0},{"$f":"'OB6 - Harmonogram rekapitulace'!Y38","v":0},{"$f":"'OB6 - Harmonogram rekapitulace'!Z38","v":0},{"$f":"'OB6 - Harmonogram rekapitulace'!AA38","v":0},{"$f":"'OB6 - Harmonogram rekapitulace'!AB38","v":0},{"$f":"'OB6 - Harmonogram rekapitulace'!AC38","v":0},{"$f":"'OB6 - Harmonogram rekapitulace'!AD38","v":0},{"$f":"'OB6 - Harmonogram rekapitulace'!AE38","v":0},{"$f":"'OB6 - Harmonogram rekapitulace'!AF38","v":0},{"$f":"'OB6 - Harmonogram rekapitulace'!AG38","v":0},{"$f":"'OB6 - Harmonogram rekapitulace'!AH38","v":0},{"$f":"'OB6 - Harmonogram rekapitulace'!AI38","v":0},{"$f":"'OB6 - Harmonogram rekapitulace'!AJ38","v":0},{"$f":"'OB6 - Harmonogram rekapitulace'!AK38","v":0},{"$f":"'OB6 - Harmonogram rekapitulace'!AL38","v":0},{"$f":"'OB6 - Harmonogram rekapitulace'!AM38","v":0},{"$f":"'OB6 - Harmonogram rekapitulace'!AN38","v":0},{"$f":"'OB6 - Harmonogram rekapitulace'!AO38","v":0},{"$f":"'OB6 - Harmonogram rekapitulace'!AP38","v":0},{"$f":"'OB6 - Harmonogram rekapitulace'!AQ38","v":0},{"$f":"'OB6 - Harmonogram rekapitulace'!AR38","v":0},{"$f":"'OB6 - Harmonogram rekapitulace'!AS38","v":0},{"$f":"'OB6 - Harmonogram rekapitulace'!AT38","v":0},{"$f":"'OB6 - Harmonogram rekapitulace'!AU38","v":0},{"$f":"'OB6 - Harmonogram rekapitulace'!AV38","v":0},{"$f":"'OB6 - Harmonogram rekapitulace'!AW38","v":0}]
["MV","Přeložka monitorovacích vrtů","I.Etapa",{"$f":"'OB6 - Harmonogram rekapitulace'!I40","v":0},{"$f":"'OB6 - Harmonogram rekapitulace'!J40","v":0},{"$f":"'OB6 - Harmonogram rekapitulace'!K40","v":0},{"$f":"'OB6 - Harmonogram rekapitulace'!L40","v":0},{"$f":"'OB6 - Harmonogram rekapitulace'!M40","v":0},{"$f":"'OB6 - Harmonogram rekapitulace'!N40","v":0},{"$f":"'OB6 - Harmonogram rekapitulace'!O40","v":0},{"$f":"'OB6 - Harmonogram rekapitulace'!P40","v":0},{"$f":"'OB6 - Harmonogram rekapitulace'!Q40","v":0},{"$f":"'OB6 - Harmonogram rekapitulace'!R40","v":0},{"$f":"'OB6 - Harmonogram rekapitulace'!S40","v":0},{"$f":"'OB6 - Harmonogram rekapitulace'!T40","v":0},{"$f":"'OB6 - Harmonogram rekapitulace'!U40","v":0},{"$f":"'OB6 - Harmonogram rekapitulace'!V40","v":0},{"$f":"'OB6 - Harmonogram rekapitulace'!W40","v":0},{"$f":"'OB6 - Harmonogram rekapitulace'!X40","v":0},{"$f":"'OB6 - Harmonogram rekapitulace'!Y40","v":0},{"$f":"'OB6 - Harmonogram rekapitulace'!Z40","v":0},{"$f":"'OB6 - Harmonogram rekapitulace'!AA40","v":0},{"$f":"'OB6 - Harmonogram rekapitulace'!AB40","v":0},{"$f":"'OB6 - Harmonogram rekapitulace'!AC40","v":0},{"$f":"'OB6 - Harmonogram rekapitulace'!AD40","v":0},{"$f":"'OB6 - Harmonogram rekapitulace'!AE40","v":0},{"$f":"'OB6 - Harmonogram rekapitulace'!AF40","v":0},{"$f":"'OB6 - Harmonogram rekapitulace'!AG40","v":0},{"$f":"'OB6 - Harmonogram rekapitulace'!AH40","v":0},{"$f":"'OB6 - Harmonogram rekapitulace'!AI40","v":0},{"$f":"'OB6 - Harmonogram rekapitulace'!AJ40","v":0},{"$f":"'OB6 - Harmonogram rekapitulace'!AK40","v":0},{"$f":"'OB6 - Harmonogram rekapitulace'!AL40","v":0},{"$f":"'OB6 - Harmonogram rekapitulace'!AM40","v":0},{"$f":"'OB6 - Harmonogram rekapitulace'!AN40","v":0},{"$f":"'OB6 - Harmonogram rekapitulace'!AO40","v":0},{"$f":"'OB6 - Harmonogram rekapitulace'!AP40","v":0},{"$f":"'OB6 - Harmonogram rekapitulace'!AQ40","v":0},{"$f":"'OB6 - Harmonogram rekapitulace'!AR40","v":0},{"$f":"'OB6 - Harmonogram rekapitulace'!AS40","v":0},{"$f":"'OB6 - Harmonogram rekapitulace'!AT40","v":0},{"$f":"'OB6 - Harmonogram rekapitulace'!AU40","v":0},{"$f":"'OB6 - Harmonogram rekapitulace'!AV40","v":0},{"$f":"'OB6 - Harmonogram rekapitulace'!AW40","v":0}]
["SO 402 / PS 401","Demolice objektů, technologie - uhelný sklad","II.Etapa",{"$f":"'OB6 - Harmonogram rekapitulace'!I42","v":0},{"$f":"'OB6 - Harmonogram rekapitulace'!J42","v":0},{"$f":"'OB6 - Harmonogram rekapitulace'!K42","v":0},{"$f":"'OB6 - Harmonogram rekapitulace'!L42","v":0},{"$f":"'OB6 - Harmonogram rekapitulace'!M42","v":0},{"$f":"'OB6 - Harmonogram rekapitulace'!N42","v":0},{"$f":"'OB6 - Harmonogram rekapitulace'!O42","v":0},{"$f":"'OB6 - Harmonogram rekapitulace'!P42","v":0},{"$f":"'OB6 - Harmonogram rekapitulace'!Q42","v":0},{"$f":"'OB6 - Harmonogram rekapitulace'!R42","v":0},{"$f":"'OB6 - Harmonogram rekapitulace'!S42","v":0},{"$f":"'OB6 - Harmonogram rekapitulace'!T42","v":0},{"$f":"'OB6 - Harmonogram rekapitulace'!U42","v":0},{"$f":"'OB6 - Harmonogram rekapitulace'!V42","v":0},{"$f":"'OB6 - Harmonogram rekapitulace'!W42","v":0},{"$f":"'OB6 - Harmonogram rekapitulace'!X42","v":0},{"$f":"'OB6 - Harmonogram rekapitulace'!Y42","v":0},{"$f":"'OB6 - Harmonogram rekapitulace'!Z42","v":0},{"$f":"'OB6 - Harmonogram rekapitulace'!AA42","v":0},{"$f":"'OB6 - Harmonogram rekapitulace'!AB42","v":0},{"$f":"'OB6 - Harmonogram rekapitulace'!AC42","v":0},{"$f":"'OB6 - Harmonogram rekapitulace'!AD42","v":0},{"$f":"'OB6 - Harmonogram rekapitulace'!AE42","v":0},{"$f":"'OB6 - Harmonogram rekapitulace'!AF42","v":0},{"$f":"'OB6 - Harmonogram rekapitulace'!AG42","v":0},{"$f":"'OB6 - Harmonogram rekapitulace'!AH42","v":0},{"$f":"'OB6 - Harmonogram rekapitulace'!AI42","v":0},{"$f":"'OB6 - Harmonogram rekapitulace'!AJ42","v":0},{"$f":"'OB6 - Harmonogram rekapitulace'!AK42","v":0},{"$f":"'OB6 - Harmonogram rekapitulace'!AL42","v":0},{"$f":"'OB6 - Harmonogram rekapitulace'!AM42","v":0},{"$f":"'OB6 - Harmonogram rekapitulace'!AN42","v":0},{"$f":"'OB6 - Harmonogram rekapitulace'!AO42","v":0},{"$f":"'OB6 - Harmonogram rekapitulace'!AP42","v":0},{"$f":"'OB6 - Harmonogram rekapitulace'!AQ42","v":0},{"$f":"'OB6 - Harmonogram rekapitulace'!AR42","v":0},{"$f":"'OB6 - Harmonogram rekapitulace'!AS42","v":0},{"$f":"'OB6 - Harmonogram rekapitulace'!AT42","v":0},{"$f":"'OB6 - Harmonogram rekapitulace'!AU42","v":0},{"$f":"'OB6 - Harmonogram rekapitulace'!AV42","v":0},{"$f":"'OB6 - Harmonogram rekapitulace'!AW42","v":0}]
["SO 111","Sadové úpravy a zatravněné plochy ","II.Etapa",{"$f":"'OB6 - Harmonogram rekapitulace'!I44","v":0},{"$f":"'OB6 - Harmonogram rekapitulace'!J44","v":0},{"$f":"'OB6 - Harmonogram rekapitulace'!K44","v":0},{"$f":"'OB6 - Harmonogram rekapitulace'!L44","v":0},{"$f":"'OB6 - Harmonogram rekapitulace'!M44","v":0},{"$f":"'OB6 - Harmonogram rekapitulace'!N44","v":0},{"$f":"'OB6 - Harmonogram rekapitulace'!O44","v":0},{"$f":"'OB6 - Harmonogram rekapitulace'!P44","v":0},{"$f":"'OB6 - Harmonogram rekapitulace'!Q44","v":0},{"$f":"'OB6 - Harmonogram rekapitulace'!R44","v":0},{"$f":"'OB6 - Harmonogram rekapitulace'!S44","v":0},{"$f":"'OB6 - Harmonogram rekapitulace'!T44","v":0},{"$f":"'OB6 - Harmonogram rekapitulace'!U44","v":0},{"$f":"'OB6 - Harmonogram rekapitulace'!V44","v":0},{"$f":"'OB6 - Harmonogram rekapitulace'!W44","v":0},{"$f":"'OB6 - Harmonogram rekapitulace'!X44","v":0},{"$f":"'OB6 - Harmonogram rekapitulace'!Y44","v":0},{"$f":"'OB6 - Harmonogram rekapitulace'!Z44","v":0},{"$f":"'OB6 - Harmonogram rekapitulace'!AA44","v":0},{"$f":"'OB6 - Harmonogram rekapitulace'!AB44","v":0},{"$f":"'OB6 - Harmonogram rekapitulace'!AC44","v":0},{"$f":"'OB6 - Harmonogram rekapitulace'!AD44","v":0},{"$f":"'OB6 - Harmonogram rekapitulace'!AE44","v":0},{"$f":"'OB6 - Harmonogram rekapitulace'!AF44","v":0},{"$f":"'OB6 - Harmonogram rekapitulace'!AG44","v":0},{"$f":"'OB6 - Harmonogram rekapitulace'!AH44","v":0},{"$f":"'OB6 - Harmonogram rekapitulace'!AI44","v":0},{"$f":"'OB6 - Harmonogram rekapitulace'!AJ44","v":0},{"$f":"'OB6 - Harmonogram rekapitulace'!AK44","v":0},{"$f":"'OB6 - Harmonogram rekapitulace'!AL44","v":0},{"$f":"'OB6 - Harmonogram rekapitulace'!AM44","v":0},{"$f":"'OB6 - Harmonogram rekapitulace'!AN44","v":0},{"$f":"'OB6 - Harmonogram rekapitulace'!AO44","v":0},{"$f":"'OB6 - Harmonogram rekapitulace'!AP44","v":0},{"$f":"'OB6 - Harmonogram rekapitulace'!AQ44","v":0},{"$f":"'OB6 - Harmonogram rekapitulace'!AR44","v":0},{"$f":"'OB6 - Harmonogram rekapitulace'!AS44","v":0},{"$f":"'OB6 - Harmonogram rekapitulace'!AT44","v":0},{"$f":"'OB6 - Harmonogram rekapitulace'!AU44","v":0},{"$f":"'OB6 - Harmonogram rekapitulace'!AV44","v":0},{"$f":"'OB6 - Harmonogram rekapitulace'!AW44","v":0}]
["IO 301","Komunikace a zpevněné a manipulační plochy 2","II.Etapa",{"$f":"'OB6 - Harmonogram rekapitulace'!I46","v":0},{"$f":"'OB6 - Harmonogram rekapitulace'!J46","v":0},{"$f":"'OB6 - Harmonogram rekapitulace'!K46","v":0},{"$f":"'OB6 - Harmonogram rekapitulace'!L46","v":0},{"$f":"'OB6 - Harmonogram rekapitulace'!M46","v":0},{"$f":"'OB6 - Harmonogram rekapitulace'!N46","v":0},{"$f":"'OB6 - Harmonogram rekapitulace'!O46","v":0},{"$f":"'OB6 - Harmonogram rekapitulace'!P46","v":0},{"$f":"'OB6 - Harmonogram rekapitulace'!Q46","v":0},{"$f":"'OB6 - Harmonogram rekapitulace'!R46","v":0},{"$f":"'OB6 - Harmonogram rekapitulace'!S46","v":0},{"$f":"'OB6 - Harmonogram rekapitulace'!T46","v":0},{"$f":"'OB6 - Harmonogram rekapitulace'!U46","v":0},{"$f":"'OB6 - Harmonogram rekapitulace'!V46","v":0},{"$f":"'OB6 - Harmonogram rekapitulace'!W46","v":0},{"$f":"'OB6 - Harmonogram rekapitulace'!X46","v":0},{"$f":"'OB6 - Harmonogram rekapitulace'!Y46","v":0},{"$f":"'OB6 - Harmonogram rekapitulace'!Z46","v":0},{"$f":"'OB6 - Harmonogram rekapitulace'!AA46","v":0},{"$f":"'OB6 - Harmonogram rekapitulace'!AB46","v":0},{"$f":"'OB6 - Harmonogram rekapitulace'!AC46","v":0},{"$f":"'OB6 - Harmonogram rekapitulace'!AD46","v":0},{"$f":"'OB6 - Harmonogram rekapitulace'!AE46","v":0},{"$f":"'OB6 - Harmonogram rekapitulace'!AF46","v":0},{"$f":"'OB6 - Harmonogram rekapitulace'!AG46","v":0},{"$f":"'OB6 - Harmonogram rekapitulace'!AH46","v":0},{"$f":"'OB6 - Harmonogram rekapitulace'!AI46","v":0},{"$f":"'OB6 - Harmonogram rekapitulace'!AJ46","v":0},{"$f":"'OB6 - Harmonogram rekapitulace'!AK46","v":0},{"$f":"'OB6 - Harmonogram rekapitulace'!AL46","v":0},{"$f":"'OB6 - Harmonogram rekapitulace'!AM46","v":0},{"$f":"'OB6 - Harmonogram rekapitulace'!AN46","v":0},{"$f":"'OB6 - Harmonogram rekapitulace'!AO46","v":0},{"$f":"'OB6 - Harmonogram rekapitulace'!AP46","v":0},{"$f":"'OB6 - Harmonogram rekapitulace'!AQ46","v":0},{"$f":"'OB6 - Harmonogram rekapitulace'!AR46","v":0},{"$f":"'OB6 - Harmonogram rekapitulace'!AS46","v":0},{"$f":"'OB6 - Harmonogram rekapitulace'!AT46","v":0},{"$f":"'OB6 - Harmonogram rekapitulace'!AU46","v":0},{"$f":"'OB6 - Harmonogram rekapitulace'!AV46","v":0},{"$f":"'OB6 - Harmonogram rekapitulace'!AW46","v":0}]
["IO 302 - 08","Stoka U","II.Etapa",{"$f":"'OB6 - Harmonogram rekapitulace'!I48","v":0},{"$f":"'OB6 - Harmonogram rekapitulace'!J48","v":0},{"$f":"'OB6 - Harmonogram rekapitulace'!K48","v":0},{"$f":"'OB6 - Harmonogram rekapitulace'!L48","v":0},{"$f":"'OB6 - Harmonogram rekapitulace'!M48","v":0},{"$f":"'OB6 - Harmonogram rekapitulace'!N48","v":0},{"$f":"'OB6 - Harmonogram rekapitulace'!O48","v":0},{"$f":"'OB6 - Harmonogram rekapitulace'!P48","v":0},{"$f":"'OB6 - Harmonogram rekapitulace'!Q48","v":0},{"$f":"'OB6 - Harmonogram rekapitulace'!R48","v":0},{"$f":"'OB6 - Harmonogram rekapitulace'!S48","v":0},{"$f":"'OB6 - Harmonogram rekapitulace'!T48","v":0},{"$f":"'OB6 - Harmonogram rekapitulace'!U48","v":0},{"$f":"'OB6 - Harmonogram rekapitulace'!V48","v":0},{"$f":"'OB6 - Harmonogram rekapitulace'!W48","v":0},{"$f":"'OB6 - Harmonogram rekapitulace'!X48","v":0},{"$f":"'OB6 - Harmonogram rekapitulace'!Y48","v":0},{"$f":"'OB6 - Harmonogram rekapitulace'!Z48","v":0},{"$f":"'OB6 - Harmonogram rekapitulace'!AA48","v":0},{"$f":"'OB6 - Harmonogram rekapitulace'!AB48","v":0},{"$f":"'OB6 - Harmonogram rekapitulace'!AC48","v":0},{"$f":"'OB6 - Harmonogram rekapitulace'!AD48","v":0},{"$f":"'OB6 - Harmonogram rekapitulace'!AE48","v":0},{"$f":"'OB6 - Harmonogram rekapitulace'!AF48","v":0},{"$f":"'OB6 - Harmonogram rekapitulace'!AG48","v":0},{"$f":"'OB6 - Harmonogram rekapitulace'!AH48","v":0},{"$f":"'OB6 - Harmonogram rekapitulace'!AI48","v":0},{"$f":"'OB6 - Harmonogram rekapitulace'!AJ48","v":0},{"$f":"'OB6 - Harmonogram rekapitulace'!AK48","v":0},{"$f":"'OB6 - Harmonogram rekapitulace'!AL48","v":0},{"$f":"'OB6 - Harmonogram rekapitulace'!AM48","v":0},{"$f":"'OB6 - Harmonogram rekapitulace'!AN48","v":0},{"$f":"'OB6 - Harmonogram rekapitulace'!AO48","v":0},{"$f":"'OB6 - Harmonogram rekapitulace'!AP48","v":0},{"$f":"'OB6 - Harmonogram rekapitulace'!AQ48","v":0},{"$f":"'OB6 - Harmonogram rekapitulace'!AR48","v":0},{"$f":"'OB6 - Harmonogram rekapitulace'!AS48","v":0},{"$f":"'OB6 - Harmonogram rekapitulace'!AT48","v":0},{"$f":"'OB6 - Harmonogram rekapitulace'!AU48","v":0},{"$f":"'OB6 - Harmonogram rekapitulace'!AV48","v":0},{"$f":"'OB6 - Harmonogram rekapitulace'!AW48","v":0}]
["ZS / VRN","Zařízení staveniště a VRN",null,{"$f":"'OB6 - Harmonogram rekapitulace'!I50","v":0},{"$f":"'OB6 - Harmonogram rekapitulace'!J50","v":0},{"$f":"'OB6 - Harmonogram rekapitulace'!K50","v":0},{"$f":"'OB6 - Harmonogram rekapitulace'!L50","v":0},{"$f":"'OB6 - Harmonogram rekapitulace'!M50","v":0},{"$f":"'OB6 - Harmonogram rekapitulace'!N50","v":0},{"$f":"'OB6 - Harmonogram rekapitulace'!O50","v":0},{"$f":"'OB6 - Harmonogram rekapitulace'!P50","v":0},{"$f":"'OB6 - Harmonogram rekapitulace'!Q50","v":0},{"$f":"'OB6 - Harmonogram rekapitulace'!R50","v":0},{"$f":"'OB6 - Harmonogram rekapitulace'!S50","v":0},{"$f":"'OB6 - Harmonogram rekapitulace'!T50","v":0},{"$f":"'OB6 - Harmonogram rekapitulace'!U50","v":0},{"$f":"'OB6 - Harmonogram rekapitulace'!V50","v":0},{"$f":"'OB6 - Harmonogram rekapitulace'!W50","v":0},{"$f":"'OB6 - Harmonogram rekapitulace'!X50","v":0},{"$f":"'OB6 - Harmonogram rekapitulace'!Y50","v":0},{"$f":"'OB6 - Harmonogram rekapitulace'!Z50","v":0},{"$f":"'OB6 - Harmonogram rekapitulace'!AA50","v":0},{"$f":"'OB6 - Harmonogram rekapitulace'!AB50","v":0},{"$f":"'OB6 - Harmonogram rekapitulace'!AC50","v":0},{"$f":"'OB6 - Harmonogram rekapitulace'!AD50","v":0},{"$f":"'OB6 - Harmonogram rekapitulace'!AE50","v":0},{"$f":"'OB6 - Harmonogram rekapitulace'!AF50","v":0},{"$f":"'OB6 - Harmonogram rekapitulace'!AG50","v":0},{"$f":"'OB6 - Harmonogram rekapitulace'!AH50","v":0},{"$f":"'OB6 - Harmonogram rekapitulace'!AI50","v":0},{"$f":"'OB6 - Harmonogram rekapitulace'!AJ50","v":0},{"$f":"'OB6 - Harmonogram rekapitulace'!AK50","v":0},{"$f":"'OB6 - Harmonogram rekapitulace'!AL50","v":0},{"$f":"'OB6 - Harmonogram rekapitulace'!AM50","v":0},{"$f":"'OB6 - Harmonogram rekapitulace'!AN50","v":0},{"$f":"'OB6 - Harmonogram rekapitulace'!AO50","v":0},{"$f":"'OB6 - Harmonogram rekapitulace'!AP50","v":0},{"$f":"'OB6 - Harmonogram rekapitulace'!AQ50","v":0},{"$f":"'OB6 - Harmonogram rekapitulace'!AR50","v":0},{"$f":"'OB6 - Harmonogram rekapitulace'!AS50","v":0},{"$f":"'OB6 - Harmonogram rekapitulace'!AT50","v":0},{"$f":"'OB6 - Harmonogram rekapitulace'!AU50","v":0},{"$f":"'OB6 - Harmonogram rekapitulace'!AV50","v":0},{"$f":"'OB6 - Harmonogram rekapitulace'!AW50","v":0}]
[]
[null,"Zhotovitel na tomto listu nevyplňuje žádné hodnoty. Hodnoty jsou přenášeny z listu OB6 - Harmonogram rekapitulace"]
[null,"neobsazeno"]
[null,"etapa K20 - vlastní kotel včetně všech komponentů"]
[null,"etapa K20 - provozní zásobníky paliva včetně dopravy štěpky do kotle"]
[null,"etapa K20 - ventilátory (vzduchové, spalinové, recirkulační) včetně vnitřních spalinovodů"]
[null,"etapa K20 - tkaninový filtr"]
[null,"etapa K20 - technologie DSI"]
[]
[null,"etapa K20 - elektroinstalace"]
[null,"etapa K20 - ASŘ"]
[null,"etapa K20 - kompresorová stanice"]
[null,"etapa K20 - připojení médií"]
[null,"etapa K20 - venkovní rozvody spalinovodů včetně napojení na komín"]
[null,"etapa K20 - venkovní konstrukce potrubního mostu (připojení popelového hospodářství a SNCR)"]
[null,"etapa K20 - opláštění a zastřešení, dokončení všech stavebních činností"]
[null,"etapa K20 - další výše nevyjmenované položky"]
[null,"etapa K20 - dokončení stavebních prací"]
[null,"etapa K20 - ukončení montážních prací"]
[null,"etapa K20 - školení zaměstnanců provozu"]
[null,"etapa K20 - příprava ke kompexnímu vyzkoušení"]
[null,"etapa K20 - komplexní vyzkoušení"]
[null,"etapa K20 - zkušební provoz"]
[null,"etapa K20 - garanční test A"]
[null,"etapa K20 - předběžné převzetí díla PAC"]
[null,"etapa K20 - garanční test B"]
[null,"etapa K20 - finální převzetí díla FAC"]

{"sheet":"OB6 - Finanční harmonogram","index":3,"n_rows":55,"n_cols":44,"rows_kept":55,"cut":false,"hidden":true,"merged":[[30,3,30,43],[3,3,3,43],[3,0,4,0],[3,1,4,1],[3,2,4,2],[29,1,29,2],[30,1,30,2]]}
[]
[null,"Příloha K zadávací dokumentace - Časový harmonogram"]
[]
["SO, IO, PS"," Popis","Etapa","Období"]
[null,null,null,"2024-08-01","2024-09-02","2024-10-04","2024-11-05","2024-12-07","2025-01-08","2025-02-09","2025-03-13","2025-04-14","2025-05-16","2025-06-17","2025-07-19","2025-08-20","2025-09-21","2025-10-23","2025-11-24","2025-12-26","2026-01-27","2026-02-28","2026-03-31","2026-04-01","2026-05-03","2026-06-04","2026-07-06","2026-08-07","2026-09-08","2026-10-10","2026-11-11","2026-12-13","2027-01-14","2027-02-15","2027-03-19","2027-04-20","2027-05-22","2027-06-23","2027-07-25","2027-08-26","2027-09-27","2027-10-29","2027-11-30","2027-12-31"]
[null,1,1,1,2,3,4,5,6,7,8,9,10,11,12,13,14,15,16,17,18,19,20,21,22,23,24,25,26,27,28,29,30,31,32,33,34,35,36,37,38,39,40,41]
["SO 401","Demolice objektů ","I.Etapa",{"$f":"'OB6 - Harmonogram rekapitulace'!I9","v":0},{"$f":"'OB6 - Harmonogram rekapitulace'!J9","v":0},{"$f":"'OB6 - Harmonogram rekapitulace'!K9","v":0},{"$f":"'OB6 - Harmonogram rekapitulace'!L9","v":0},{"$f":"'OB6 - Harmonogram rekapitulace'!M9","v":0},{"$f":"'OB6 - Harmonogram rekapitulace'!N9","v":0},{"$f":"'OB6 - Harmonogram rekapitulace'!O9","v":0},{"$f":"'OB6 - Harmonogram rekapitulace'!P9","v":0},{"$f":"'OB6 - Harmonogram rekapitulace'!Q9","v":0},{"$f":"'OB6 - Harmonogram rekapitulace'!R9","v":0},{"$f":"'OB6 - Harmonogram rekapitulace'!S9","v":0},{"$f":"'OB6 - Harmonogram rekapitulace'!T9","v":0},{"$f":"'OB6 - Harmonogram rekapitulace'!U9","v":0},{"$f":"'OB6 - Harmonogram rekapitulace'!V9","v":0},{"$f":"'OB6 - Harmonogram rekapitulace'!W9","v":0},{"$f":"'OB6 - Harmonogram rekapitulace'!X9","v":0},{"$f":"'OB6 - Harmonogram rekapitulace'!Y9","v":0},{"$f":"'OB6 - Harmonogram rekapitulace'!Z9","v":0},{"$f":"'OB6 - Harmonogram rekapitulace'!AA9","v":0},{"$f":"'OB6 - Harmonogram rekapitulace'!AB9","v":0},{"$f":"'OB6 - Harmonogram rekapitulace'!AC9","v":0},{"$f":"'OB6 - Harmonogram rekapitulace'!AD9","v":0},{"$f":"'OB6 - Harmonogram rekapitulace'!AE9","v":0},{"$f":"'OB6 - Harmonogram rekapitulace'!AF9","v":0},{"$f":"'OB6 - Harmonogram rekapitulace'!AG9","v":0},{"$f":"'OB6 - Harmonogram rekapitulace'!AH9","v":0},{"$f":"'OB6 - Harmonogram rekapitulace'!AI9","v":0},{"$f":"'OB6 - Harmonogram rekapitulace'!AJ9","v":0},{"$f":"'OB6 - Harmonogram rekapitulace'!AK9","v":0},{"$f":"'OB6 - Harmonogram rekapitulace'!AL9","v":0},{"$f":"'OB6 - Harmonogram rekapitulace'!AM9","v":0},{"$f":"'OB6 - Harmonogram rekapitulace'!AN9","v":0},{"$f":"'OB6 - Harmonogram rekapitulace'!AO9","v":0},{"$f":"'OB6 - Harmonogram rekapitulace'!AP9","v":0},{"$f":"'OB6 - Harmonogram rekapitulace'!AQ9","v":0},{"$f":"'OB6 - Harmonogram rekapitulace'!AR9","v":0},{"$f":"'OB6 - Harmonogram rekapitulace'!AS9","v":0},{"$f":"'OB6 - Harmonogram rekapitulace'!AT9","v":0},{"$f":"'OB6 - Harmonogram rekapitulace'!AU9","v":0},{"$f":"'OB6 - Harmonogram rekapitulace'!AV9","v":0},{"$f":"'OB6 - Harmonogram rekapitulace'!AW9","v":0}]
["SO 101 / SO 106","Příjem a úprava dřevní štěpky / Elektrorozvodna hospdářství dřevní štěpky ","I.Etapa",{"$f":"'OB6 - Harmonogram rekapitulace'!I11","v":0},{"$f":"'OB6 - Harmonogram rekapitulace'!J11","v":0},{"$f":"'OB6 - Harmonogram rekapitulace'!K11","v":0},{"$f":"'OB6 - Harmonogram rekapitulace'!L11","v":0},{"$f":"'OB6 - Harmonogram rekapitulace'!M11","v":0},{"$f":"'OB6 - Harmonogram rekapitulace'!N11","v":0},{"$f":"'OB6 - Harmonogram rekapitulace'!O11","v":0},{"$f":"'OB6 - Harmonogram rekapitulace'!P11","v":0},{"$f":"'OB6 - Harmonogram rekapitulace'!Q11","v":0},{"$f":"'OB6 - Harmonogram rekapitulace'!R11","v":0},{"$f":"'OB6 - Harmonogram rekapitulace'!S11","v":0},{"$f":"'OB6 - Harmonogram rekapitulace'!T11","v":0},{"$f":"'OB6 - Harmonogram rekapitulace'!U11","v":0},{"$f":"'OB6 - Harmonogram rekapitulace'!V11","v":0},{"$f":"'OB6 - Harmonogram rekapitulace'!W11","v":0},{"$f":"'OB6 - Harmonogram rekapitulace'!X11","v":0},{"$f":"'OB6 - Harmonogram rekapitulace'!Y11","v":0},{"$f":"'OB6 - Harmonogram rekapitulace'!Z11","v":0},{"$f":"'OB6 - Harmonogram rekapitulace'!AA11","v":0},{"$f":"'OB6 - Harmonogram rekapitulace'!AB11","v":0},{"$f":"'OB6 - Harmonogram rekapitulace'!AC11","v":0},{"$f":"'OB6 - Harmonogram rekapitulace'!AD11","v":0},{"$f":"'OB6 - Harmonogram rekapitulace'!AE11","v":0},{"$f":"'OB6 - Harmonogram rekapitulace'!AF11","v":0},{"$f":"'OB6 - Harmonogram rekapitulace'!AG11","v":0},{"$f":"'OB6 - Harmonogram rekapitulace'!AH11","v":0},{"$f":"'OB6 - Harmonogram rekapitulace'!AI11","v":0},{"$f":"'OB6 - Harmonogram rekapitulace'!AJ11","v":0},{"$f":"'OB6 - Harmonogram rekapitulace'!AK11","v":0},{"$f":"'OB6 - Harmonogram rekapitulace'!AL11","v":0},{"$f":"'OB6 - Harmonogram rekapitulace'!AM11","v":0},{"$f":"'OB6 - Harmonogram rekapitulace'!AN11","v":0},{"$f":"'OB6 - Harmonogram rekapitulace'!AO11","v":0},{"$f":"'OB6 - Harmonogram rekapitulace'!AP11","v":0},{"$f":"'OB6 - Harmonogram rekapitulace'!AQ11","v":0},{"$f":"'OB6 - Harmonogram rekapitulace'!AR11","v":0},{"$f":"'OB6 - Harmonogram rekapitulace'!AS11","v":0},{"$f":"'OB6 - Harmonogram rekapitulace'!AT11","v":0},{"$f":"'OB6 - Harmonogram rekapitulace'!AU11","v":0},{"$f":"'OB6 - Harmonogram rekapitulace'!AV11","v":0},{"$f":"'OB6 - Harmonogram rekapitulace'!AW11","v":0}]
["SO 102.2","Sklad dřevní štěpky","I.Etapa",{"$f":"'OB6 - Harmonogram rekapitulace'!I13","v":0},{"$f":"'OB6 - Harmonogram rekapitulace'!J13","v":0},{"$f":"'OB6 - Harmonogram rekapitulace'!K13","v":0},{"$f":"'OB6 - Harmonogram rekapitulace'!L13","v":0},{"$f":"'OB6 - Harmonogram rekapitulace'!M13","v":0},{"$f":"'OB6 - Harmonogram rekapitulace'!N13","v":0},{"$f":"'OB6 - Harmonogram rekapitulace'!O13","v":0},{"$f":"'OB6 - Harmonogram rekapitulace'!P13","v":0},{"$f":"'OB6 - Harmonogram rekapitulace'!Q13","v":0},{"$f":"'OB6 - Harmonogram rekapitulace'!R13","v":0},{"$f":"'OB6 - Harmonogram rekapitulace'!S13","v":0},{"$f":"'OB6 - Harmonogram rekapitulace'!T13","v":0},{"$f":"'OB6 - Harmonogram rekapitulace'!U13","v":0},{"$f":"'OB6 - Harmonogram rekapitulace'!V13","v":0},{"$f":"'OB6 - Harmonogram rekapitulace'!W13","v":0},{"$f":"'OB6 - Harmonogram rekapitulace'!X13","v":0},{"$f":"'OB6 - Harmonogram rekapitulace'!Y13","v":0},{"$f":"'OB6 - Harmonogram rekapitulace'!Z13","v":0},{"$f":"'OB6 - Harmonogram rekapitulace'!AA13","v":0},{"$f":"'OB6 - Harmonogram rekapitulace'!AB13","v":0},{"$f":"'OB6 - Harmonogram rekapitulace'!AC13","v":0},{"$f":"'OB6 - Harmonogram rekapitulace'!AD13","v":0},{"$f":"'OB6 - Harmonogram rekapitulace'!AE13","v":0},{"$f":"'OB6 - Harmonogram rekapitulace'!AF13","v":0},{"$f":"'OB6 - Harmonogram rekapitulace'!AG13","v":0},{"$f":"'OB6 - Harmonogram rekapitulace'!AH13","v":0},{"$f":"'OB6 - Harmonogram rekapitulace'!AI13","v":0},{"$f":"'OB6 - Harmonogram rekapitulace'!AJ13","v":0},{"$f":"'OB6 - Harmonogram rekapitulace'!AK13","v":0},{"$f":"'OB6 - Harmonogram rekapitulace'!AL13","v":0},{"$f":"'OB6 - Harmonogram rekapitulace'!AM13","v":0},{"$f":"'OB6 - Harmonogram rekapitulace'!AN13","v":0},{"$f":"'OB6 - Harmonogram rekapitulace'!AO13","v":0},{"$f":"'OB6 - Harmonogram rekapitulace'!AP13","v":0},{"$f":"'OB6 - Harmonogram rekapitulace'!AQ13","v":0},{"$f":"'OB6 - Harmonogram rekapitulace'!AR13","v":0},{"$f":"'OB6 - Harmonogram rekapitulace'!AS13","v":0},{"$f":"'OB6 - Harmonogram rekapitulace'!AT13","v":0},{"$f":"'OB6 - Harmonogram rekapitulace'!AU13","v":0},{"$f":"'OB6 - Harmonogram rekapitulace'!AV13","v":0},{"$f":"'OB6 - Harmonogram rekapitulace'!AW13","v":0}]
["SO 103.2 / SO 112","Doprava dřevní štěpky do skladu / Vzorkovna","I.Etapa",{"$f":"'OB6 - Harmonogram rekapitulace'!I15","v":0},{"$f":"'OB6 - Harmonogram rekapitulace'!J15","v":0},{"$f":"'OB6 - Harmonogram rekapitulace'!K15","v":0},{"$f":"'OB6 - Harmonogram rekapitulace'!L15","v":0},{"$f":"'OB6 - Harmonogram rekapitulace'!M15","v":0},{"$f":"'OB6 - Harmonogram rekapitulace'!N15","v":0},{"$f":"'OB6 - Harmonogram rekapitulace'!O15","v":0},{"$f":"'OB6 - Harmonogram rekapitulace'!P15","v":0},{"$f":"'OB6 - Harmonogram rekapitulace'!Q15","v":0},{"$f":"'OB6 - Harmonogram rekapitulace'!R15","v":0},{"$f":"'OB6 - Harmonogram rekapitulace'!S15","v":0},{"$f":"'OB6 - Harmonogram rekapitulace'!T15","v":0},{"$f":"'OB6 - Harmonogram rekapitulace'!U15","v":0},{"$f":"'OB6 - Harmonogram rekapitulace'!V15","v":0},{"$f":"'OB6 - Harmonogram rekapitulace'!W15","v":0},{"$f":"'OB6 - Harmonogram rekapitulace'!X15","v":0},{"$f":"'OB6 - Harmonogram rekapitulace'!Y15","v":0},{"$f":"'OB6 - Harmonogram rekapitulace'!Z15","v":0},{"$f":"'OB6 - Harmonogram rekapitulace'!AA15","v":0},{"$f":"'OB6 - Harmonogram rekapitulace'!AB15","v":0},{"$f":"'OB6 - Harmonogram rekapitulace'!AC15","v":0},{"$f":"'OB6 - Harmonogram rekapitulace'!AD15","v":0},{"$f":"'OB6 - Harmonogram rekapitulace'!AE15","v":0},{"$f":"'OB6 - Harmonogram rekapitulace'!AF15","v":0},{"$f":"'OB6 - Harmonogram rekapitulace'!AG15","v":0},{"$f":"'OB6 - Harmonogram rekapitulace'!AH15","v":0},{"$f":"'OB6 - Harmonogram rekapitulace'!AI15","v":0},{"$f":"'OB6 - Harmonogram rekapitulace'!AJ15","v":0},{"$f":"'OB6 - Harmonogram rekapitulace'!AK15","v":0},{"$f":"'OB6 - Harmonogram rekapitulace'!AL15","v":0},{"$f":"'OB6 - Harmonogram rekapitulace'!AM15","v":0},{"$f":"'OB6 - Harmonogram rekapitulace'!AN15","v":0},{"$f":"'OB6 - Harmonogram rekapitulace'!AO15","v":0},{"$f":"'OB6 - Harmonogram rekapitulace'!AP15","v":0},{"$f":"'OB6 - Harmonogram rekapitulace'!AQ15","v":0},{"$f":"'OB6 - Harmonogram rekapitulace'!AR15","v":0},{"$f":"'OB6 - Harmonogram rekapitulace'!AS15","v":0},{"$f":"'OB6 - Harmonogram rekapitulace'!AT15","v":0},{"$f":"'OB6 - Harmonogram rekapitulace'!AU15","v":0},{"$f":"'OB6 - Harmonogram rekapitulace'!AV15","v":0},{"$f":"'OB6 - Harmonogram rekapitulace'!AW15","v":0}]
["SO 104.2","Doprava dřevní štěpky do kotelen","I.Etapa",{"$f":"'OB6 - Harmonogram rekapitulace'!I17","v":0},{"$f":"'OB6 - Harmonogram rekapitulace'!J17","v":0},{"$f":"'OB6 - Harmonogram rekapitulace'!K17","v":0},{"$f":"'OB6 - Harmonogram rekapitulace'!L17","v":0},{"$f":"'OB6 - Harmonogram rekapitulace'!M17","v":0},{"$f":"'OB6 - Harmonogram rekapitulace'!N17","v":0},{"$f":"'OB6 - Harmonogram rekapitulace'!O17","v":0},{"$f":"'OB6 - Harmonogram rekapitulace'!P17","v":0},{"$f":"'OB6 - Harmonogram rekapitulace'!Q17","v":0},{"$f":"'OB6 - Harmonogram rekapitulace'!R17","v":0},{"$f":"'OB6 - Harmonogram rekapitulace'!S17","v":0},{"$f":"'OB6 - Harmonogram rekapitulace'!T17","v":0},{"$f":"'OB6 - Harmonogram rekapitulace'!U17","v":0},{"$f":"'OB6 - Harmonogram rekapitulace'!V17","v":0},{"$f":"'OB6 - Harmonogram rekapitulace'!W17","v":0},{"$f":"'OB6 - Harmonogram rekapitulace'!X17","v":0},{"$f":"'OB6 - Harmonogram rekapitulace'!Y17","v":0},{"$f":"'OB6 - Harmonogram rekapitulace'!Z17","v":0},{"$f":"'OB6 - Harmonogram rekapitulace'!AA17","v":0},{"$f":"'OB6 - Harmonogram rekapitulace'!AB17","v":0},{"$f":"'OB6 - Harmonogram rekapitulace'!AC17","v":0},{"$f":"'OB6 - Harmonogram rekapitulace'!AD17","v":0},{"$f":"'OB6 - Harmonogram rekapitulace'!AE17","v":0},{"$f":"'OB6 - Harmonogram rekapitulace'!AF17","v":0},{"$f":"'OB6 - Harmonogram rekapitulace'!AG17","v":0},{"$f":"'OB6 - Harmonogram rekapitulace'!AH17","v":0},{"$f":"'OB6 - Harmonogram rekapitulace'!AI17","v":0},{"$f":"'OB6 - Harmonogram rekapitulace'!AJ17","v":0},{"$f":"'OB6 - Harmonogram rekapitulace'!AK17","v":0},{"$f":"'OB6 - Harmonogram rekapitulace'!AL17","v":0},{"$f":"'OB6 - Harmonogram rekapitulace'!AM17","v":0},{"$f":"'OB6 - Harmonogram rekapitulace'!AN17","v":0},{"$f":"'OB6 - Harmonogram rekapitulace'!AO17","v":0},{"$f":"'OB6 - Harmonogram rekapitulace'!AP17","v":0},{"$f":"'OB6 - Harmonogram rekapitulace'!AQ17","v":0},{"$f":"'OB6 - Harmonogram rekapitulace'!AR17","v":0},{"$f":"'OB6 - Harmonogram rekapitulace'!AS17","v":0},{"$f":"'OB6 - Harmonogram rekapitulace'!AT17","v":0},{"$f":"'OB6 - Harmonogram rekapitulace'!AU17","v":0},{"$f":"'OB6 - Harmonogram rekapitulace'!AV17","v":0},{"$f":"'OB6 - Harmonogram rekapitulace'!AW17","v":0}]
["SO 105","SHZ - strojovna a základy nádrže ","I.Etapa",{"$f":"'OB6 - Harmonogram rekapitulace'!I19","v":0},{"$f":"'OB6 - Harmonogram rekapitulace'!J19","v":0},{"$f":"'OB6 - Harmonogram rekapitulace'!K19","v":0},{"$f":"'OB6 - Harmonogram rekapitulace'!L19","v":0},{"$f":"'OB6 - Harmonogram rekapitulace'!M19","v":0},{"$f":"'OB6 - Harmonogram rekapitulace'!N19","v":0},{"$f":"'OB6 - Harmonogram rekapitulace'!O19","v":0},{"$f":"'OB6 - Harmonogram rekapitulace'!P19","v":0},{"$f":"'OB6 - Harmonogram rekapitulace'!Q19","v":0},{"$f":"'OB6 - Harmonogram rekapitulace'!R19","v":0},{"$f":"'OB6 - Harmonogram rekapitulace'!S19","v":0},{"$f":"'OB6 - Harmonogram rekapitulace'!T19","v":0},{"$f":"'OB6 - Harmonogram rekapitulace'!U19","v":0},{"$f":"'OB6 - Harmonogram rekapitulace'!V19","v":0},{"$f":"'OB6 - Harmonogram rekapitulace'!W19","v":0},{"$f":"'OB6 - Harmonogram rekapitulace'!X19","v":0},{"$f":"'OB6 - Harmonogram rekapitulace'!Y19","v":0},{"$f":"'OB6 - Harmonogram rekapitulace'!Z19","v":0},{"$f":"'OB6 - Harmonogram rekapitulace'!AA19","v":0},{"$f":"'OB6 - Harmonogram rekapitulace'!AB19","v":0},{"$f":"'OB6 - Harmonogram rekapitulace'!AC19","v":0},{"$f":"'OB6 - Harmonogram rekapitulace'!AD19","v":0},{"$f":"'OB6 - Harmonogram rekapitulace'!AE19","v":0},{"$f":"'OB6 - Harmonogram rekapitulace'!AF19","v":0},{"$f":"'OB6 - Harmonogram rekapitulace'!AG19","v":0},{"$f":"'OB6 - Harmonogram rekapitulace'!AH19","v":0},{"$f":"'OB6 - Harmonogram rekapitulace'!AI19","v":0},{"$f":"'OB6 - Harmonogram rekapitulace'!AJ19","v":0},{"$f":"'OB6 - Harmonogram rekapitulace'!AK19","v":0},{"$f":"'OB6 - Harmonogram rekapitulace'!AL19","v":0},{"$f":"'OB6 - Harmonogram rekapitulace'!AM19","v":0},{"$f":"'OB6 - Harmonogram rekapitulace'!AN19","v":0},{"$f":"'OB6 - Harmonogram rekapitulace'!AO19","v":0},{"$f":"'OB6 - Harmonogram rekapitulace'!AP19","v":0},{"$f":"'OB6 - Harmonogram rekapitulace'!AQ19","v":0},{"$f":"'OB6 - Harmonogram rekapitulace'!AR19","v":0},{"$f":"'OB6 - Harmonogram rekapitulace'!AS19","v":0},{"$f":"'OB6 - Harmonogram rekapitulace'!AT19","v":0},{"$f":"'OB6 - Harmonogram rekapitulace'!AU19","v":0},{"$f":"'OB6 - Harmonogram rekapitulace'!AV19","v":0},{"$f":"'OB6 - Harmonogram rekapitulace'!AW19","v":0}]
["SO 109","Přesuvna vagonů","I.Etapa",{"$f":"'OB6 - Harmonogram rekapitulace'!I21","v":0},{"$f":"'OB6 - Harmonogram rekapitulace'!J21","v":0},{"$f":"'OB6 - Harmonogram rekapitulace'!K21","v":0},{"$f":"'OB6 - Harmonogram rekapitulace'!L21","v":0},{"$f":"'OB6 - Harmonogram rekapitulace'!M21","v":0},{"$f":"'OB6 - Harmonogram rekapitulace'!N21","v":0},{"$f":"'OB6 - Harmonogram rekapitulace'!O21","v":0},{"$f":"'OB6 - Harmonogram rekapitulace'!P21","v":0},{"$f":"'OB6 - Harmonogram rekapitulace'!Q21","v":0},{"$f":"'OB6 - Harmonogram rekapitulace'!R21","v":0},{"$f":"'OB6 - Harmonogram rekapitulace'!S21","v":0},{"$f":"'OB6 - Harmonogram rekapitulace'!T21","v":0},{"$f":"'OB6 - Harmonogram rekapitulace'!U21","v":0},{"$f":"'OB6 - Harmonogram rekapitulace'!V21","v":0},{"$f":"'OB6 - Harmonogram rekapitulace'!W21","v":0},{"$f":"'OB6 - Harmonogram rekapitulace'!X21","v":0},{"$f":"'OB6 - Harmonogram rekapitulace'!Y21","v":0},{"$f":"'OB6 - Harmonogram rekapitulace'!Z21","v":0},{"$f":"'OB6 - Harmonogram rekapitulace'!AA21","v":0},{"$f":"'OB6 - Harmonogram rekapitulace'!AB21","v":0},{"$f":"'OB6 - Harmonogram rekapitulace'!AC21","v":0},{"$f":"'OB6 - Harmonogram rekapitulace'!AD21","v":0},{"$f":"'OB6 - Harmonogram rekapitulace'!AE21","v":0},{"$f":"'OB6 - Harmonogram rekapitulace'!AF21","v":0},{"$f":"'OB6 - Harmonogram rekapitulace'!AG21","v":0},{"$f":"'OB6 - Harmonogram rekapitulace'!AH21","v":0},{"$f":"'OB6 - Harmonogram rekapitulace'!AI21","v":0},{"$f":"'OB6 - Harmonogram rekapitulace'!AJ21","v":0},{"$f":"'OB6 - Harmonogram rekapitulace'!AK21","v":0},{"$f":"'OB6 - Harmonogram rekapitulace'!AL21","v":0},{"$f":"'OB6 - Harmonogram rekapitulace'!AM21","v":0},{"$f":"'OB6 - Harmonogram rekapitulace'!AN21","v":0},{"$f":"'OB6 - Harmonogram rekapitulace'!AO21","v":0},{"$f":"'OB6 - Harmonogram rekapitulace'!AP21","v":0},{"$f":"'OB6 - Harmonogram rekapitulace'!AQ21","v":0},{"$f":"'OB6 - Harmonogram rekapitulace'!AR21","v":0},{"$f":"'OB6 - Harmonogram rekapitulace'!AS21","v":0},{"$f":"'OB6 - Harmonogram rekapitulace'!AT21","v":0},{"$f":"'OB6 - Harmonogram rekapitulace'!AU21","v":0},{"$f":"'OB6 - Harmonogram rekapitulace'!AV21","v":0},{"$f":"'OB6 - Harmonogram rekapitulace'!AW21","v":0}]
["SO 113","Silniční váhy ","I.Etapa",{"$f":"'OB6 - Harmonogram rekapitulace'!I23","v":0},{"$f":"'OB6 - Harmonogram rekapitulace'!J23","v":0},{"$f":"'OB6 - Harmonogram rekapitulace'!K23","v":0},{"$f":"'OB6 - Harmonogram rekapitulace'!L23","v":0},{"$f":"'OB6 - Harmonogram rekapitulace'!M23","v":0},{"$f":"'OB6 - Harmonogram rekapitulace'!N23","v":0},{"$f":"'OB6 - Harmonogram rekapitulace'!O23","v":0},{"$f":"'OB6 - Harmonogram rekapitulace'!P23","v":0},{"$f":"'OB6 - Harmonogram rekapitulace'!Q23","v":0},{"$f":"'OB6 - Harmonogram rekapitulace'!R23","v":0},{"$f":"'OB6 - Harmonogram rekapitulace'!S23","v":0},{"$f":"'OB6 - Harmonogram rekapitulace'!T23","v":0},{"$f":"'OB6 - Harmonogram rekapitulace'!U23","v":0},{"$f":"'OB6 - Harmonogram rekapitulace'!V23","v":0},{"$f":"'OB6 - Harmonogram rekapitulace'!W23","v":0},{"$f":"'OB6 - Harmonogram rekapitulace'!X23","v":0},{"$f":"'OB6 - Harmonogram rekapitulace'!Y23","v":0},{"$f":"'OB6 - Harmonogram rekapitulace'!Z23","v":0},{"$f":"'OB6 - Harmonogram rekapitulace'!AA23","v":0},{"$f":"'OB6 - Harmonogram rekapitulace'!AB23","v":0},{"$f":"'OB6 - Harmonogram rekapitulace'!AC23","v":0},{"$f":"'OB6 - Harmonogram rekapitulace'!AD23","v":0},{"$f":"'OB6 - Harmonogram rekapitulace'!AE23","v":0},{"$f":"'OB6 - Harmonogram rekapitulace'!AF23","v":0},{"$f":"'OB6 - Harmonogram rekapitulace'!AG23","v":0},{"$f":"'OB6 - Harmonogram rekapitulace'!AH23","v":0},{"$f":"'OB6 - Harmonogram rekapitulace'!AI23","v":0},{"$f":"'OB6 - Harmonogram rekapitulace'!AJ23","v":0},{"$f":"'OB6 - Harmonogram rekapitulace'!AK23","v":0},{"$f":"'OB6 - Harmonogram rekapitulace'!AL23","v":0},{"$f":"'OB6 - Harmonogram rekapitulace'!AM23","v":0},{"$f":"'OB6 - Harmonogram rekapitulace'!AN23","v":0},{"$f":"'OB6 - Harmonogram rekapitulace'!AO23","v":0},{"$f":"'OB6 - Harmonogram rekapitulace'!AP23","v":0},{"$f":"'OB6 - Harmonogram rekapitulace'!AQ23","v":0},{"$f":"'OB6 - Harmonogram rekapitulace'!AR23","v":0},{"$f":"'OB6 - Harmonogram rekapitulace'!AS23","v":0},{"$f":"'OB6 - Harmonogram rekapitulace'!AT23","v":0},{"$f":"'OB6 - Harmonogram rekapitulace'!AU23","v":0},{"$f":"'OB6 - Harmonogram rekapitulace'!AV23","v":0},{"$f":"'OB6 - Harmonogram rekapitulace'!AW23","v":0}]
["SO 201.2 / SO 202.2","Kotelna K20 + Partie za kotlem K20 - čištění spalin - viz SO 201 (OB 6)","I.Etapa",{"$f":"'OB6 - Harmonogram rekapitulace'!I25","v":0},{"$f":"'OB6 - Harmonogram rekapitulace'!J25","v":0},{"$f":"'OB6 - Harmonogram rekapitulace'!K25","v":0},{"$f":"'OB6 - Harmonogram rekapitulace'!L25","v":0},{"$f":"'OB6 - Harmonogram rekapitulace'!M25","v":0},{"$f":"'OB6 - Harmonogram rekapitulace'!N25","v":0},{"$f":"'OB6 - Harmonogram rekapitulace'!O25","v":0},{"$f":"'OB6 - Harmonogram rekapitulace'!P25","v":0},{"$f":"'OB6 - Harmonogram rekapitulace'!Q25","v":0},{"$f":"'OB6 - Harmonogram rekapitulace'!R25","v":0},{"$f":"'OB6 - Harmonogram rekapitulace'!S25","v":0},{"$f":"'OB6 - Harmonogram rekapitulace'!T25","v":0},{"$f":"'OB6 - Harmonogram rekapitulace'!U25","v":0},{"$f":"'OB6 - Harmonogram rekapitulace'!V25","v":0},{"$f":"'OB6 - Harmonogram rekapitulace'!W25","v":0},{"$f":"'OB6 - Harmonogram rekapitulace'!X25","v":0},{"$f":"'OB6 - Harmonogram rekapitulace'!Y25","v":0},{"$f":"'OB6 - Harmonogram rekapitulace'!Z25","v":0},{"$f":"'OB6 - Harmonogram rekapitulace'!AA25","v":0},{"$f":"'OB6 - Harmonogram rekapitulace'!AB25","v":0},{"$f":"'OB6 - Harmonogram rekapitulace'!AC25","v":0},{"$f":"'OB6 - Harmonogram rekapitulace'!AD25","v":0},{"$f":"'OB6 - Harmonogram rekapitulace'!AE25","v":0},{"$f":"'OB6 - Harmonogram rekapitulace'!AF25","v":0},{"$f":"'OB6 - Harmonogram rekapitulace'!AG25","v":0},{"$f":"'OB6 - Harmonogram rekapitulace'!AH25","v":0},{"$f":"'OB6 - Harmonogram rekapitulace'!AI25","v":0},{"$f":"'OB6 - Harmonogram rekapitulace'!AJ25","v":0},{"$f":"'OB6 - Harmonogram rekapitulace'!AK25","v":0},{"$f":"'OB6 - Harmonogram rekapitulace'!AL25","v":0},{"$f":"'OB6 - Harmonogram rekapitulace'!AM25","v":0},{"$f":"'OB6 - Harmonogram rekapitulace'!AN25","v":0},{"$f":"'OB6 - Harmonogram rekapitulace'!AO25","v":0},{"$f":"'OB6 - Harmonogram rekapitulace'!AP25","v":0},{"$f":"'OB6 - Harmonogram rekapitulace'!AQ25","v":0},{"$f":"'OB6 - Harmonogram rekapitulace'!AR25","v":0},{"$f":"'OB6 - Harmonogram rekapitulace'!AS25","v":0},{"$f":"'OB6 - Harmonogram rekapitulace'!AT25","v":0},{"$f":"'OB6 - Harmonogram rekapitulace'!AU25","v":0},{"$f":"'OB6 - Harmonogram rekapitulace'!AV25","v":0},{"$f":"'OB6 - Harmonogram rekapitulace'!AW25","v":0}]
["SO 204.2 / SO 205.2","Vnější kouřovody - základy a konstrukce (OB 6) – spodní stavba + Odpopílkování ","I.Etapa",{"$f":"'OB6 - Harmonogram rekapitulace'!I27","v":0},{"$f":"'OB6 - Harmonogram rekapitulace'!J27","v":0},{"$f":"'OB6 - Harmonogram rekapitulace'!K27","v":0},{"$f":"'OB6 - Harmonogram rekapitulace'!L27","v":0},{"$f":"'OB6 - Harmonogram rekapitulace'!M27","v":0},{"$f":"'OB6 - Harmonogram rekapitulace'!N27","v":0},{"$f":"'OB6 - Harmonogram rekapitulace'!O27","v":0},{"$f":"'OB6 - Harmonogram rekapitulace'!P27","v":0},{"$f":"'OB6 - Harmonogram rekapitulace'!Q27","v":0},{"$f":"'OB6 - Harmonogram rekapitulace'!R27","v":0},{"$f":"'OB6 - Harmonogram rekapitulace'!S27","v":0},{"$f":"'OB6 - Harmonogram rekapitulace'!T27","v":0},{"$f":"'OB6 - Harmonogram rekapitulace'!U27","v":0},{"$f":"'OB6 - Harmonogram rekapitulace'!V27","v":0},{"$f":"'OB6 - Harmonogram rekapitulace'!W27","v":0},{"$f":"'OB6 - Harmonogram rekapitulace'!X27","v":0},{"$f":"'OB6 - Harmonogram rekapitulace'!Y27","v":0},{"$f":"'OB6 - Harmonogram rekapitulace'!Z27","v":0},{"$f":"'OB6 - Harmonogram rekapitulace'!AA27","v":0},{"$f":"'OB6 - Harmonogram rekapitulace'!AB27","v":0},{"$f":"'OB6 - Harmonogram rekapitulace'!AC27","v":0},{"$f":"'OB6 - Harmonogram rekapitulace'!AD27","v":0},{"$f":"'OB6 - Harmonogram rekapitulace'!AE27","v":0},{"$f":"'OB6 - Harmonogram rekapitulace'!AF27","v":0},{"$f":"'OB6 - Harmonogram rekapitulace'!AG27","v":0},{"$f":"'OB6 - Harmonogram rekapitulace'!AH27","v":0},{"$f":"'OB6 - Harmonogram rekapitulace'!AI27","v":0},{"$f":"'OB6 - Harmonogram rekapitulace'!AJ27","v":0},{"$f":"'OB6 - Harmonogram rekapitulace'!AK27","v":0},{"$f":"'OB6 - Harmonogram rekapitulace'!AL27","v":0},{"$f":"'OB6 - Harmonogram rekapitulace'!AM27","v":0},{"$f":"'OB6 - Harmonogram rekapitulace'!AN27","v":0},{"$f":"'OB6 - Harmonogram rekapitulace'!AO27","v":0},{"$f":"'OB6 - Harmonogram rekapitulace'!AP27","v":0},{"$f":"'OB6 - Harmonogram rekapitulace'!AQ27","v":0},{"$f":"'OB6 - Harmonogram rekapitulace'!AR27","v":0},{"$f":"'OB6 - Harmonogram rekapitulace'!AS27","v":0},{"$f":"'OB6 - Harmonogram rekapitulace'!AT27","v":0},{"$f":"'OB6 - Harmonogram rekapitulace'!AU27","v":0},{"$f":"'OB6 - Harmonogram rekapitulace'!AV27","v":0},{"$f":"'OB6 - Harmonogram rekapitulace'!AW27","v":0}]
["IO 301","Komunikace a zpevněné a manipulační plochy 1","I.Etapa",{"$f":"'OB6 - Harmonogram rekapitulace'!I29","v":0},{"$f":"'OB6 - Harmonogram rekapitulace'!J29","v":0},{"$f":"'OB6 - Harmonogram rekapitulace'!K29","v":0},{"$f":"'OB6 - Harmonogram rekapitulace'!L29","v":0},{"$f":"'OB6 - Harmonogram rekapitulace'!M29","v":0},{"$f":"'OB6 - Harmonogram rekapitulace'!N29","v":0},{"$f":"'OB6 - Harmonogram rekapitulace'!O29","v":0},{"$f":"'OB6 - Harmonogram rekapitulace'!P29","v":0},{"$f":"'OB6 - Harmonogram rekapitulace'!Q29","v":0},{"$f":"'OB6 - Harmonogram rekapitulace'!R29","v":0},{"$f":"'OB6 - Harmonogram rekapitulace'!S29","v":0},{"$f":"'OB6 - Harmonogram rekapitulace'!T29","v":0},{"$f":"'OB6 - Harmonogram rekapitulace'!U29","v":0},{"$f":"'OB6 - Harmonogram rekapitulace'!V29","v":0},{"$f":"'OB6 - Harmonogram rekapitulace'!W29","v":0},{"$f":"'OB6 - Harmonogram rekapitulace'!X29","v":0},{"$f":"'OB6 - Harmonogram rekapitulace'!Y29","v":0},{"$f":"'OB6 - Harmonogram rekapitulace'!Z29","v":0},{"$f":"'OB6 - Harmonogram rekapitulace'!AA29","v":0},{"$f":"'OB6 - Harmonogram rekapitulace'!AB29","v":0},{"$f":"'OB6 - Harmonogram rekapitulace'!AC29","v":0},{"$f":"'OB6 - Harmonogram rekapitulace'!AD29","v":0},{"$f":"'OB6 - Harmonogram rekapitulace'!AE29","v":0},{"$f":"'OB6 - Harmonogram rekapitulace'!AF29","v":0},{"$f":"'OB6 - Harmonogram rekapitulace'!AG29","v":0},{"$f":"'OB6 - Harmonogram rekapitulace'!AH29","v":0},{"$f":"'OB6 - Harmonogram rekapitulace'!AI29","v":0},{"$f":"'OB6 - Harmonogram rekapitulace'!AJ29","v":0},{"$f":"'OB6 - Harmonogram rekapitulace'!AK29","v":0},{"$f":"'OB6 - Harmonogram rekapitulace'!AL29","v":0},{"$f":"'OB6 - Harmonogram rekapitulace'!AM29","v":0},{"$f":"'OB6 - Harmonogram rekapitulace'!AN29","v":0},{"$f":"'OB6 - Harmonogram rekapitulace'!AO29","v":0},{"$f":"'OB6 - Harmonogram rekapitulace'!AP29","v":0},{"$f":"'OB6 - Harmonogram rekapitulace'!AQ29","v":0},{"$f":"'OB6 - Harmonogram rekapitulace'!AR29","v":0},{"$f":"'OB6 - Harmonogram rekapitulace'!AS29","v":0},{"$f":"'OB6 - Harmonogram rekapitulace'!AT29","v":0},{"$f":"'OB6 - Harmonogram rekapitulace'!AU29","v":0},{"$f":"'OB6 - Harmonogram rekapitulace'!AV29","v":0},{"$f":"'OB6 - Harmonogram rekapitulace'!AW29","v":0}]
["IO 302","Kanalizace","I.Etapa",{"$f":"'OB6 - Harmonogram rekapitulace'!I31","v":0},{"$f":"'OB6 - Harmonogram rekapitulace'!J31","v":0},{"$f":"'OB6 - Harmonogram rekapitulace'!K31","v":0},{"$f":"'OB6 - Harmonogram rekapitulace'!L31","v":0},{"$f":"'OB6 - Harmonogram rekapitulace'!M31","v":0},{"$f":"'OB6 - Harmonogram rekapitulace'!N31","v":0},{"$f":"'OB6 - Harmonogram rekapitulace'!O31","v":0},{"$f":"'OB6 - Harmonogram rekapitulace'!P31","v":0},{"$f":"'OB6 - Harmonogram rekapitulace'!Q31","v":0},{"$f":"'OB6 - Harmonogram rekapitulace'!R31","v":0},{"$f":"'OB6 - Harmonogram rekapitulace'!S31","v":0},{"$f":"'OB6 - Harmonogram rekapitulace'!T31","v":0},{"$f":"'OB6 - Harmonogram rekapitulace'!U31","v":0},{"$f":"'OB6 - Harmonogram rekapitulace'!V31","v":0},{"$f":"'OB6 - Harmonogram rekapitulace'!W31","v":0},{"$f":"'OB6 - Harmonogram rekapitulace'!X31","v":0},{"$f":"'OB6 - Harmonogram rekapitulace'!Y31","v":0},{"$f":"'OB6 - Harmonogram rekapitulace'!Z31","v":0},{"$f":"'OB6 - Harmonogram rekapitulace'!AA31","v":0},{"$f":"'OB6 - Harmonogram rekapitulace'!AB31","v":0},{"$f":"'OB6 - Harmonogram rekapitulace'!AC31","v":0},{"$f":"'OB6 - Harmonogram rekapitulace'!AD31","v":0},{"$f":"'OB6 - Harmonogram rekapitulace'!AE31","v":0},{"$f":"'OB6 - Harmonogram rekapitulace'!AF31","v":0},{"$f":"'OB6 - Harmonogram rekapitulace'!AG31","v":0},{"$f":"'OB6 - Harmonogram rekapitulace'!AH31","v":0},{"$f":"'OB6 - Harmonogram rekapitulace'!AI31","v":0},{"$f":"'OB6 - Harmonogram rekapitulace'!AJ31","v":0},{"$f":"'OB6 - Harmonogram rekapitulace'!AK31","v":0},{"$f":"'OB6 - Harmonogram rekapitulace'!AL31","v":0},{"$f":"'OB6 - Harmonogram rekapitulace'!AM31","v":0},{"$f":"'OB6 - Harmonogram rekapitulace'!AN31","v":0},{"$f":"'OB6 - Harmonogram rekapitulace'!AO31","v":0},{"$f":"'OB6 - Harmonogram rekapitulace'!AP31","v":0},{"$f":"'OB6 - Harmonogram rekapitulace'!AQ31","v":0},{"$f":"'OB6 - Harmonogram rekapitulace'!AR31","v":0},{"$f":"'OB6 - Harmonogram rekapitulace'!AS31","v":0},{"$f":"'OB6 - Harmonogram rekapitulace'!AT31","v":0},{"$f":"'OB6 - Harmonogram rekapitulace'!AU31","v":0},{"$f":"'OB6 - Harmonogram rekapitulace'!AV31","v":0},{"$f":"'OB6 - Harmonogram rekapitulace'!AW31","v":0}]
["IO 303","Venkovní osvětlení","I.Etapa",{"$f":"'OB6 - Harmonogram rekapitulace'!I33","v":0},{"$f":"'OB6 - Harmonogram rekapitulace'!J33","v":0},{"$f":"'OB6 - Harmonogram rekapitulace'!K33","v":0},{"$f":"'OB6 - Harmonogram rekapitulace'!L33","v":0},{"$f":"'OB6 - Harmonogram rekapitulace'!M33","v":0},{"$f":"'OB6 - Harmonogram rekapitulace'!N33","v":0},{"$f":"'OB6 - Harmonogram rekapitulace'!O33","v":0},{"$f":"'OB6 - Harmonogram rekapitulace'!P33","v":0},{"$f":"'OB6 - Harmonogram rekapitulace'!Q33","v":0},{"$f":"'OB6 - Harmonogram rekapitulace'!R33","v":0},{"$f":"'OB6 - Harmonogram rekapitulace'!S33","v":0},{"$f":"'OB6 - Harmonogram rekapitulace'!T33","v":0},{"$f":"'OB6 - Harmonogram rekapitulace'!U33","v":0},{"$f":"'OB6 - Harmonogram rekapitulace'!V33","v":0},{"$f":"'OB6 - Harmonogram rekapitulace'!W33","v":0},{"$f":"'OB6 - Harmonogram rekapitulace'!X33","v":0},{"$f":"'OB6 - Harmonogram rekapitulace'!Y33","v":0},{"$f":"'OB6 - Harmonogram rekapitulace'!Z33","v":0},{"$f":"'OB6 - Harmonogram rekapitulace'!AA33","v":0},{"$f":"'OB6 - Harmonogram rekapitulace'!AB33","v":0},{"$f":"'OB6 - Harmonogram rekapitulace'!AC33","v":0},{"$f":"'OB6 - Harmonogram rekapitulace'!AD33","v":0},{"$f":"'OB6 - Harmonogram rekapitulace'!AE33","v":0},{"$f":"'OB6 - Harmonogram rekapitulace'!AF33","v":0},{"$f":"'OB6 - Harmonogram rekapitulace'!AG33","v":0},{"$f":"'OB6 - Harmonogram rekapitulace'!AH33","v":0},{"$f":"'OB6 - Harmonogram rekapitulace'!AI33","v":0},{"$f":"'OB6 - Harmonogram rekapitulace'!AJ33","v":0},{"$f":"'OB6 - Harmonogram rekapitulace'!AK33","v":0},{"$f":"'OB6 - Harmonogram rekapitulace'!AL33","v":0},{"$f":"'OB6 - Harmonogram rekapitulace'!AM33","v":0},{"$f":"'OB6 - Harmonogram rekapitulace'!AN33","v":0},{"$f":"'OB6 - Harmonogram rekapitulace'!AO33","v":0},{"$f":"'OB6 - Harmonogram rekapitulace'!AP33","v":0},{"$f":"'OB6 - Harmonogram rekapitulace'!AQ33","v":0},{"$f":"'OB6 - Harmonogram rekapitulace'!AR33","v":0},{"$f":"'OB6 - Harmonogram rekapitulace'!AS33","v":0},{"$f":"'OB6 - Harmonogram rekapitulace'!AT33","v":0},{"$f":"'OB6 - Harmonogram rekapitulace'!AU33","v":0},{"$f":"'OB6 - Harmonogram rekapitulace'!AV33","v":0},{"$f":"'OB6 - Harmonogram rekapitulace'!AW33","v":0}]
["IO 304","Pitná voda","I.Etapa",{"$f":"'OB6 - Harmonogram rekapitulace'!I35","v":0},{"$f":"'OB6 - Harmonogram rekapitulace'!J35","v":0},{"$f":"'OB6 - Harmonogram rekapitulace'!K35","v":0},{"$f":"'OB6 - Harmonogram rekapitulace'!L35","v":0},{"$f":"'OB6 - Harmonogram rekapitulace'!M35","v":0},{"$f":"'OB6 - Harmonogram rekapitulace'!N35","v":0},{"$f":"'OB6 - Harmonogram rekapitulace'!O35","v":0},{"$f":"'OB6 - Harmonogram rekapitulace'!P35","v":0},{"$f":"'OB6 - Harmonogram rekapitulace'!Q35","v":0},{"$f":"'OB6 - Harmonogram rekapitulace'!R35","v":0},{"$f":"'OB6 - Harmonogram rekapitulace'!S35","v":0},{"$f":"'OB6 - Harmonogram rekapitulace'!T35","v":0},{"$f":"'OB6 - Harmonogram rekapitulace'!U35","v":0},{"$f":"'OB6 - Harmonogram rekapitulace'!V35","v":0},{"$f":"'OB6 - Harmonogram rekapitulace'!W35","v":0},{"$f":"'OB6 - Harmonogram rekapitulace'!X35","v":0},{"$f":"'OB6 - Harmonogram rekapitulace'!Y35","v":0},{"$f":"'OB6 - Harmonogram rekapitulace'!Z35","v":0},{"$f":"'OB6 - Harmonogram rekapitulace'!AA35","v":0},{"$f":"'OB6 - Harmonogram rekapitulace'!AB35","v":0},{"$f":"'OB6 - Harmonogram rekapitulace'!AC35","v":0},{"$f":"'OB6 - Harmonogram rekapitulace'!AD35","v":0},{"$f":"'OB6 - Harmonogram rekapitulace'!AE35","v":0},{"$f":"'OB6 - Harmonogram rekapitulace'!AF35","v":0},{"$f":"'OB6 - Harmonogram rekapitulace'!AG35","v":0},{"$f":"'OB6 - Harmonogram rekapitulace'!AH35","v":0},{"$f":"'OB6 - Harmonogram rekapitulace'!AI35","v":0},{"$f":"'OB6 - Harmonogram rekapitulace'!AJ35","v":0},{"$f":"'OB6 - Harmonogram rekapitulace'!AK35","v":0},{"$f":"'OB6 - Harmonogram rekapitulace'!AL35","v":0},{"$f":"'OB6 - Harmonogram rekapitulace'!AM35","v":0},{"$f":"'OB6 - Harmonogram rekapitulace'!AN35","v":0},{"$f":"'OB6 - Harmonogram rekapitulace'!AO35","v":0},{"$f":"'OB6 - Harmonogram rekapitulace'!AP35","v":0},{"$f":"'OB6 - Harmonogram rekapitulace'!AQ35","v":0},{"$f":"'OB6 - Harmonogram rekapitulace'!AR35","v":0},{"$f":"'OB6 - Harmonogram rekapitulace'!AS35","v":0},{"$f":"'OB6 - Harmonogram rekapitulace'!AT35","v":0},{"$f":"'OB6 - Harmonogram rekapitulace'!AU35","v":0},{"$f":"'OB6 - Harmonogram rekapitulace'!AV35","v":0},{"$f":"'OB6 - Harmonogram rekapitulace'!AW35","v":0}]
["IO 306","Průmyslová voda (vč. přesunu hydrantů)","I.Etapa",{"$f":"'OB6 - Harmonogram rekapitulace'!I37","v":0},{"$f":"'OB6 - Harmonogram rekapitulace'!J37","v":0},{"$f":"'OB6 - Harmonogram rekapitulace'!K37","v":0},{"$f":"'OB6 - Harmonogram rekapitulace'!L37","v":0},{"$f":"'OB6 - Harmonogram rekapitulace'!M37","v":0},{"$f":"'OB6 - Harmonogram rekapitulace'!N37","v":0},{"$f":"'OB6 - Harmonogram rekapitulace'!O37","v":0},{"$f":"'OB6 - Harmonogram rekapitulace'!P37","v":0},{"$f":"'OB6 - Harmonogram rekapitulace'!Q37","v":0},{"$f":"'OB6 - Harmonogram rekapitulace'!R37","v":0},{"$f":"'OB6 - Harmonogram rekapitulace'!S37","v":0},{"$f":"'OB6 - Harmonogram rekapitulace'!T37","v":0},{"$f":"'OB6 - Harmonogram rekapitulace'!U37","v":0},{"$f":"'OB6 - Harmonogram rekapitulace'!V37","v":0},{"$f":"'OB6 - Harmonogram rekapitulace'!W37","v":0},{"$f":"'OB6 - Harmonogram rekapitulace'!X37","v":0},{"$f":"'OB6 - Harmonogram rekapitulace'!Y37","v":0},{"$f":"'OB6 - Harmonogram rekapitulace'!Z37","v":0},{"$f":"'OB6 - Harmonogram rekapitulace'!AA37","v":0},{"$f":"'OB6 - Harmonogram rekapitulace'!AB37","v":0},{"$f":"'OB6 - Harmonogram rekapitulace'!AC37","v":0},{"$f":"'OB6 - Harmonogram rekapitulace'!AD37","v":0},{"$f":"'OB6 - Harmonogram rekapitulace'!AE37","v":0},{"$f":"'OB6 - Harmonogram rekapitulace'!AF37","v":0},{"$f":"'OB6 - Harmonogram rekapitulace'!AG37","v":0},{"$f":"'OB6 - Harmonogram rekapitulace'!AH37","v":0},{"$f":"'OB6 - Harmonogram rekapitulace'!AI37","v":0},{"$f":"'OB6 - Harmonogram rekapitulace'!AJ37","v":0},{"$f":"'OB6 - Harmonogram rekapitulace'!AK37","v":0},{"$f":"'OB6 - Harmonogram rekapitulace'!AL37","v":0},{"$f":"'OB6 - Harmonogram rekapitulace'!AM37","v":0},{"$f":"'OB6 - Harmonogram rekapitulace'!AN37","v":0},{"$f":"'OB6 - Harmonogram rekapitulace'!AO37","v":0},{"$f":"'OB6 - Harmonogram rekapitulace'!AP37","v":0},{"$f":"'OB6 - Harmonogram rekapitulace'!AQ37","v":0},{"$f":"'OB6 - Harmonogram rekapitulace'!AR37","v":0},{"$f":"'OB6 - Harmonogram rekapitulace'!AS37","v":0},{"$f":"'OB6 - Harmonogram rekapitulace'!AT37","v":0},{"$f":"'OB6 - Harmonogram rekapitulace'!AU37","v":0},{"$f":"'OB6 - Harmonogram rekapitulace'!AV37","v":0},{"$f":"'OB6 - Harmonogram rekapitulace'!AW37","v":0}]
["IO 307","Přeložky elektro a nové přípojky","I.Etapa",{"$f":"'OB6 - Harmonogram rekapitulace'!I39","v":0},{"$f":"'OB6 - Harmonogram rekapitulace'!J39","v":0},{"$f":"'OB6 - Harmonogram rekapitulace'!K39","v":0},{"$f":"'OB6 - Harmonogram rekapitulace'!L39","v":0},{"$f":"'OB6 - Harmonogram rekapitulace'!M39","v":0},{"$f":"'OB6 - Harmonogram rekapitulace'!N39","v":0},{"$f":"'OB6 - Harmonogram rekapitulace'!O39","v":0},{"$f":"'OB6 - Harmonogram rekapitulace'!P39","v":0},{"$f":"'OB6 - Harmonogram rekapitulace'!Q39","v":0},{"$f":"'OB6 - Harmonogram rekapitulace'!R39","v":0},{"$f":"'OB6 - Harmonogram rekapitulace'!S39","v":0},{"$f":"'OB6 - Harmonogram rekapitulace'!T39","v":0},{"$f":"'OB6 - Harmonogram rekapitulace'!U39","v":0},{"$f":"'OB6 - Harmonogram rekapitulace'!V39","v":0},{"$f":"'OB6 - Harmonogram rekapitulace'!W39","v":0},{"$f":"'OB6 - Harmonogram rekapitulace'!X39","v":0},{"$f":"'OB6 - Harmonogram rekapitulace'!Y39","v":0},{"$f":"'OB6 - Harmonogram rekapitulace'!Z39","v":0},{"$f":"'OB6 - Harmonogram rekapitulace'!AA39","v":0},{"$f":"'OB6 - Harmonogram rekapitulace'!AB39","v":0},{"$f":"'OB6 - Harmonogram rekapitulace'!AC39","v":0},{"$f":"'OB6 - Harmonogram rekapitulace'!AD39","v":0},{"$f":"'OB6 - Harmonogram rekapitulace'!AE39","v":0},{"$f":"'OB6 - Harmonogram rekapitulace'!AF39","v":0},{"$f":"'OB6 - Harmonogram rekapitulace'!AG39","v":0},{"$f":"'OB6 - Harmonogram rekapitulace'!AH39","v":0},{"$f":"'OB6 - Harmonogram rekapitulace'!AI39","v":0},{"$f":"'OB6 - Harmonogram rekapitulace'!AJ39","v":0},{"$f":"'OB6 - Harmonogram rekapitulace'!AK39","v":0},{"$f":"'OB6 - Harmonogram rekapitulace'!AL39","v":0},{"$f":"'OB6 - Harmonogram rekapitulace'!AM39","v":0},{"$f":"'OB6 - Harmonogram rekapitulace'!AN39","v":0},{"$f":"'OB6 - Harmonogram rekapitulace'!AO39","v":0},{"$f":"'OB6 - Harmonogram rekapitulace'!AP39","v":0},{"$f":"'OB6 - Harmonogram rekapitulace'!AQ39","v":0},{"$f":"'OB6 - Harmonogram rekapitulace'!AR39","v":0},{"$f":"'OB6 - Harmonogram rekapitulace'!AS39","v":0},{"$f":"'OB6 - Harmonogram rekapitulace'!AT39","v":0},{"$f":"'OB6 - Harmonogram rekapitulace'!AU39","v":0},{"$f":"'OB6 - Harmonogram rekapitulace'!AV39","v":0},{"$f":"'OB6 - Harmonogram rekapitulace'!AW39","v":0}]
["MV","Přeložka monitorovacích vrtů","I.Etapa",{"$f":"'OB6 - Harmonogram rekapitulace'!I41","v":0},{"$f":"'OB6 - Harmonogram rekapitulace'!J41","v":0},{"$f":"'OB6 - Harmonogram rekapitulace'!K41","v":0},{"$f":"'OB6 - Harmonogram rekapitulace'!L41","v":0},{"$f":"'OB6 - Harmonogram rekapitulace'!M41","v":0},{"$f":"'OB6 - Harmonogram rekapitulace'!N41","v":0},{"$f":"'OB6 - Harmonogram rekapitulace'!O41","v":0},{"$f":"'OB6 - Harmonogram rekapitulace'!P41","v":0},{"$f":"'OB6 - Harmonogram rekapitulace'!Q41","v":0},{"$f":"'OB6 - Harmonogram rekapitulace'!R41","v":0},{"$f":"'OB6 - Harmonogram rekapitulace'!S41","v":0},{"$f":"'OB6 - Harmonogram rekapitulace'!T41","v":0},{"$f":"'OB6 - Harmonogram rekapitulace'!U41","v":0},{"$f":"'OB6 - Harmonogram rekapitulace'!V41","v":0},{"$f":"'OB6 - Harmonogram rekapitulace'!W41","v":0},{"$f":"'OB6 - Harmonogram rekapitulace'!X41","v":0},{"$f":"'OB6 - Harmonogram rekapitulace'!Y41","v":0},{"$f":"'OB6 - Harmonogram rekapitulace'!Z41","v":0},{"$f":"'OB6 - Harmonogram rekapitulace'!AA41","v":0},{"$f":"'OB6 - Harmonogram rekapitulace'!AB41","v":0},{"$f":"'OB6 - Harmonogram rekapitulace'!AC41","v":0},{"$f":"'OB6 - Harmonogram rekapitulace'!AD41","v":0},{"$f":"'OB6 - Harmonogram rekapitulace'!AE41","v":0},{"$f":"'OB6 - Harmonogram rekapitulace'!AF41","v":0},{"$f":"'OB6 - Harmonogram rekapitulace'!AG41","v":0},{"$f":"'OB6 - Harmonogram rekapitulace'!AH41","v":0},{"$f":"'OB6 - Harmonogram rekapitulace'!AI41","v":0},{"$f":"'OB6 - Harmonogram rekapitulace'!AJ41","v":0},{"$f":"'OB6 - Harmonogram rekapitulace'!AK41","v":0},{"$f":"'OB6 - Harmonogram rekapitulace'!AL41","v":0},{"$f":"'OB6 - Harmonogram rekapitulace'!AM41","v":0},{"$f":"'OB6 - Harmonogram rekapitulace'!AN41","v":0},{"$f":"'OB6 - Harmonogram rekapitulace'!AO41","v":0},{"$f":"'OB6 - Harmonogram rekapitulace'!AP41","v":0},{"$f":"'OB6 - Harmonogram rekapitulace'!AQ41","v":0},{"$f":"'OB6 - Harmonogram rekapitulace'!AR41","v":0},{"$f":"'OB6 - Harmonogram rekapitulace'!AS41","v":0},{"$f":"'OB6 - Harmonogram rekapitulace'!AT41","v":0},{"$f":"'OB6 - Harmonogram rekapitulace'!AU41","v":0},{"$f":"'OB6 - Harmonogram rekapitulace'!AV41","v":0},{"$f":"'OB6 - Harmonogram rekapitulace'!AW41","v":0}]
["SO 402 / PS 401","Demolice objektů, technologie - uhelný sklad","II.Etapa",{"$f":"'OB6 - Harmonogram rekapitulace'!I43","v":0},{"$f":"'OB6 - Harmonogram rekapitulace'!J43","v":0},{"$f":"'OB6 - Harmonogram rekapitulace'!K43","v":0},{"$f":"'OB6 - Harmonogram rekapitulace'!L43","v":0},{"$f":"'OB6 - Harmonogram rekapitulace'!M43","v":0},{"$f":"'OB6 - Harmonogram rekapitulace'!N43","v":0},{"$f":"'OB6 - Harmonogram rekapitulace'!O43","v":0},{"$f":"'OB6 - Harmonogram rekapitulace'!P43","v":0},{"$f":"'OB6 - Harmonogram rekapitulace'!Q43","v":0},{"$f":"'OB6 - Harmonogram rekapitulace'!R43","v":0},{"$f":"'OB6 - Harmonogram rekapitulace'!S43","v":0},{"$f":"'OB6 - Harmonogram rekapitulace'!T43","v":0},{"$f":"'OB6 - Harmonogram rekapitulace'!U43","v":0},{"$f":"'OB6 - Harmonogram rekapitulace'!V43","v":0},{"$f":"'OB6 - Harmonogram rekapitulace'!W43","v":0},{"$f":"'OB6 - Harmonogram rekapitulace'!X43","v":0},{"$f":"'OB6 - Harmonogram rekapitulace'!Y43","v":0},{"$f":"'OB6 - Harmonogram rekapitulace'!Z43","v":0},{"$f":"'OB6 - Harmonogram rekapitulace'!AA43","v":0},{"$f":"'OB6 - Harmonogram rekapitulace'!AB43","v":0},{"$f":"'OB6 - Harmonogram rekapitulace'!AC43","v":0},{"$f":"'OB6 - Harmonogram rekapitulace'!AD43","v":0},{"$f":"'OB6 - Harmonogram rekapitulace'!AE43","v":0},{"$f":"'OB6 - Harmonogram rekapitulace'!AF43","v":0},{"$f":"'OB6 - Harmonogram rekapitulace'!AG43","v":0},{"$f":"'OB6 - Harmonogram rekapitulace'!AH43","v":0},{"$f":"'OB6 - Harmonogram rekapitulace'!AI43","v":0},{"$f":"'OB6 - Harmonogram rekapitulace'!AJ43","v":0},{"$f":"'OB6 - Harmonogram rekapitulace'!AK43","v":0},{"$f":"'OB6 - Harmonogram rekapitulace'!AL43","v":0},{"$f":"'OB6 - Harmonogram rekapitulace'!AM43","v":0},{"$f":"'OB6 - Harmonogram rekapitulace'!AN43","v":0},{"$f":"'OB6 - Harmonogram rekapitulace'!AO43","v":0},{"$f":"'OB6 - Harmonogram rekapitulace'!AP43","v":0},{"$f":"'OB6 - Harmonogram rekapitulace'!AQ43","v":0},{"$f":"'OB6 - Harmonogram rekapitulace'!AR43","v":0},{"$f":"'OB6 - Harmonogram rekapitulace'!AS43","v":0},{"$f":"'OB6 - Harmonogram rekapitulace'!AT43","v":0},{"$f":"'OB6 - Harmonogram rekapitulace'!AU43","v":0},{"$f":"'OB6 - Harmonogram rekapitulace'!AV43","v":0},{"$f":"'OB6 - Harmonogram rekapitulace'!AW43","v":0}]
["SO 111","Sadové úpravy a zatravněné plochy ","II.Etapa",{"$f":"'OB6 - Harmonogram rekapitulace'!I45","v":0},{"$f":"'OB6 - Harmonogram rekapitulace'!J45","v":0},{"$f":"'OB6 - Harmonogram rekapitulace'!K45","v":0},{"$f":"'OB6 - Harmonogram rekapitulace'!L45","v":0},{"$f":"'OB6 - Harmonogram rekapitulace'!M45","v":0},{"$f":"'OB6 - Harmonogram rekapitulace'!N45","v":0},{"$f":"'OB6 - Harmonogram rekapitulace'!O45","v":0},{"$f":"'OB6 - Harmonogram rekapitulace'!P45","v":0},{"$f":"'OB6 - Harmonogram rekapitulace'!Q45","v":0},{"$f":"'OB6 - Harmonogram rekapitulace'!R45","v":0},{"$f":"'OB6 - Harmonogram rekapitulace'!S45","v":0},{"$f":"'OB6 - Harmonogram rekapitulace'!T45","v":0},{"$f":"'OB6 - Harmonogram rekapitulace'!U45","v":0},{"$f":"'OB6 - Harmonogram rekapitulace'!V45","v":0},{"$f":"'OB6 - Harmonogram rekapitulace'!W45","v":0},{"$f":"'OB6 - Harmonogram rekapitulace'!X45","v":0},{"$f":"'OB6 - Harmonogram rekapitulace'!Y45","v":0},{"$f":"'OB6 - Harmonogram rekapitulace'!Z45","v":0},{"$f":"'OB6 - Harmonogram rekapitulace'!AA45","v":0},{"$f":"'OB6 - Harmonogram rekapitulace'!AB45","v":0},{"$f":"'OB6 - Harmonogram rekapitulace'!AC45","v":0},{"$f":"'OB6 - Harmonogram rekapitulace'!AD45","v":0},{"$f":"'OB6 - Harmonogram rekapitulace'!AE45","v":0},{"$f":"'OB6 - Harmonogram rekapitulace'!AF45","v":0},{"$f":"'OB6 - Harmonogram rekapitulace'!AG45","v":0},{"$f":"'OB6 - Harmonogram rekapitulace'!AH45","v":0},{"$f":"'OB6 - Harmonogram rekapitulace'!AI45","v":0},{"$f":"'OB6 - Harmonogram rekapitulace'!AJ45","v":0},{"$f":"'OB6 - Harmonogram rekapitulace'!AK45","v":0},{"$f":"'OB6 - Harmonogram rekapitulace'!AL45","v":0},{"$f":"'OB6 - Harmonogram rekapitulace'!AM45","v":0},{"$f":"'OB6 - Harmonogram rekapitulace'!AN45","v":0},{"$f":"'OB6 - Harmonogram rekapitulace'!AO45","v":0},{"$f":"'OB6 - Harmonogram rekapitulace'!AP45","v":0},{"$f":"'OB6 - Harmonogram rekapitulace'!AQ45","v":0},{"$f":"'OB6 - Harmonogram rekapitulace'!AR45","v":0},{"$f":"'OB6 - Harmonogram rekapitulace'!AS45","v":0},{"$f":"'OB6 - Harmonogram rekapitulace'!AT45","v":0},{"$f":"'OB6 - Harmonogram rekapitulace'!AU45","v":0},{"$f":"'OB6 - Harmonogram rekapitulace'!AV45","v":0},{"$f":"'OB6 - Harmonogram rekapitulace'!AW45","v":0}]
["IO 301","Komunikace a zpevněné a manipulační plochy 2","II.Etapa",{"$f":"'OB6 - Harmonogram rekapitulace'!I47","v":0},{"$f":"'OB6 - Harmonogram rekapitulace'!J47","v":0},{"$f":"'OB6 - Harmonogram rekapitulace'!K47","v":0},{"$f":"'OB6 - Harmonogram rekapitulace'!L47","v":0},{"$f":"'OB6 - Harmonogram rekapitulace'!M47","v":0},{"$f":"'OB6 - Harmonogram rekapitulace'!N47","v":0},{"$f":"'OB6 - Harmonogram rekapitulace'!O47","v":0},{"$f":"'OB6 - Harmonogram rekapitulace'!P47","v":0},{"$f":"'OB6 - Harmonogram rekapitulace'!Q47","v":0},{"$f":"'OB6 - Harmonogram rekapitulace'!R47","v":0},{"$f":"'OB6 - Harmonogram rekapitulace'!S47","v":0},{"$f":"'OB6 - Harmonogram rekapitulace'!T47","v":0},{"$f":"'OB6 - Harmonogram rekapitulace'!U47","v":0},{"$f":"'OB6 - Harmonogram rekapitulace'!V47","v":0},{"$f":"'OB6 - Harmonogram rekapitulace'!W47","v":0},{"$f":"'OB6 - Harmonogram rekapitulace'!X47","v":0},{"$f":"'OB6 - Harmonogram rekapitulace'!Y47","v":0},{"$f":"'OB6 - Harmonogram rekapitulace'!Z47","v":0},{"$f":"'OB6 - Harmonogram rekapitulace'!AA47","v":0},{"$f":"'OB6 - Harmonogram rekapitulace'!AB47","v":0},{"$f":"'OB6 - Harmonogram rekapitulace'!AC47","v":0},{"$f":"'OB6 - Harmonogram rekapitulace'!AD47","v":0},{"$f":"'OB6 - Harmonogram rekapitulace'!AE47","v":0},{"$f":"'OB6 - Harmonogram rekapitulace'!AF47","v":0},{"$f":"'OB6 - Harmonogram rekapitulace'!AG47","v":0},{"$f":"'OB6 - Harmonogram rekapitulace'!AH47","v":0},{"$f":"'OB6 - Harmonogram rekapitulace'!AI47","v":0},{"$f":"'OB6 - Harmonogram rekapitulace'!AJ47","v":0},{"$f":"'OB6 - Harmonogram rekapitulace'!AK47","v":0},{"$f":"'OB6 - Harmonogram rekapitulace'!AL47","v":0},{"$f":"'OB6 - Harmonogram rekapitulace'!AM47","v":0},{"$f":"'OB6 - Harmonogram rekapitulace'!AN47","v":0},{"$f":"'OB6 - Harmonogram rekapitulace'!AO47","v":0},{"$f":"'OB6 - Harmonogram rekapitulace'!AP47","v":0},{"$f":"'OB6 - Harmonogram rekapitulace'!AQ47","v":0},{"$f":"'OB6 - Harmonogram rekapitulace'!AR47","v":0},{"$f":"'OB6 - Harmonogram rekapitulace'!AS47","v":0},{"$f":"'OB6 - Harmonogram rekapitulace'!AT47","v":0},{"$f":"'OB6 - Harmonogram rekapitulace'!AU47","v":0},{"$f":"'OB6 - Harmonogram rekapitulace'!AV47","v":0},{"$f":"'OB6 - Harmonogram rekapitulace'!AW47","v":0}]
["IO 302 - 08","Stoka U","II.Etapa",{"$f":"'OB6 - Harmonogram rekapitulace'!I49","v":0},{"$f":"'OB6 - Harmonogram rekapitulace'!J49","v":0},{"$f":"'OB6 - Harmonogram rekapitulace'!K49","v":0},{"$f":"'OB6 - Harmonogram rekapitulace'!L49","v":0},{"$f":"'OB6 - Harmonogram rekapitulace'!M49","v":0},{"$f":"'OB6 - Harmonogram rekapitulace'!N49","v":0},{"$f":"'OB6 - Harmonogram rekapitulace'!O49","v":0},{"$f":"'OB6 - Harmonogram rekapitulace'!P49","v":0},{"$f":"'OB6 - Harmonogram rekapitulace'!Q49","v":0},{"$f":"'OB6 - Harmonogram rekapitulace'!R49","v":0},{"$f":"'OB6 - Harmonogram rekapitulace'!S49","v":0},{"$f":"'OB6 - Harmonogram rekapitulace'!T49","v":0},{"$f":"'OB6 - Harmonogram rekapitulace'!U49","v":0},{"$f":"'OB6 - Harmonogram rekapitulace'!V49","v":0},{"$f":"'OB6 - Harmonogram rekapitulace'!W49","v":0},{"$f":"'OB6 - Harmonogram rekapitulace'!X49","v":0},{"$f":"'OB6 - Harmonogram rekapitulace'!Y49","v":0},{"$f":"'OB6 - Harmonogram rekapitulace'!Z49","v":0},{"$f":"'OB6 - Harmonogram rekapitulace'!AA49","v":0},{"$f":"'OB6 - Harmonogram rekapitulace'!AB49","v":0},{"$f":"'OB6 - Harmonogram rekapitulace'!AC49","v":0},{"$f":"'OB6 - Harmonogram rekapitulace'!AD49","v":0},{"$f":"'OB6 - Harmonogram rekapitulace'!AE49","v":0},{"$f":"'OB6 - Harmonogram rekapitulace'!AF49","v":0},{"$f":"'OB6 - Harmonogram rekapitulace'!AG49","v":0},{"$f":"'OB6 - Harmonogram rekapitulace'!AH49","v":0},{"$f":"'OB6 - Harmonogram rekapitulace'!AI49","v":0},{"$f":"'OB6 - Harmonogram rekapitulace'!AJ49","v":0},{"$f":"'OB6 - Harmonogram rekapitulace'!AK49","v":0},{"$f":"'OB6 - Harmonogram rekapitulace'!AL49","v":0},{"$f":"'OB6 - Harmonogram rekapitulace'!AM49","v":0},{"$f":"'OB6 - Harmonogram rekapitulace'!AN49","v":0},{"$f":"'OB6 - Harmonogram rekapitulace'!AO49","v":0},{"$f":"'OB6 - Harmonogram rekapitulace'!AP49","v":0},{"$f":"'OB6 - Harmonogram rekapitulace'!AQ49","v":0},{"$f":"'OB6 - Harmonogram rekapitulace'!AR49","v":0},{"$f":"'OB6 - Harmonogram rekapitulace'!AS49","v":0},{"$f":"'OB6 - Harmonogram rekapitulace'!AT49","v":0},{"$f":"'OB6 - Harmonogram rekapitulace'!AU49","v":0},{"$f":"'OB6 - Harmonogram rekapitulace'!AV49","v":0},{"$f":"'OB6 - Harmonogram rekapitulace'!AW49","v":0}]
["ZS / VRN","Zařízení staveniště a VRN",null,{"$f":"'OB6 - Harmonogram rekapitulace'!I51","v":0},{"$f":"'OB6 - Harmonogram rekapitulace'!J51","v":0},{"$f":"'OB6 - Harmonogram rekapitulace'!K51","v":0},{"$f":"'OB6 - Harmonogram rekapitulace'!L51","v":0},{"$f":"'OB6 - Harmonogram rekapitulace'!M51","v":0},{"$f":"'OB6 - Harmonogram rekapitulace'!N51","v":0},{"$f":"'OB6 - Harmonogram rekapitulace'!O51","v":0},{"$f":"'OB6 - Harmonogram rekapitulace'!P51","v":0},{"$f":"'OB6 - Harmonogram rekapitulace'!Q51","v":0},{"$f":"'OB6 - Harmonogram rekapitulace'!R51","v":0},{"$f":"'OB6 - Harmonogram rekapitulace'!S51","v":0},{"$f":"'OB6 - Harmonogram rekapitulace'!T51","v":0},{"$f":"'OB6 - Harmonogram rekapitulace'!U51","v":0},{"$f":"'OB6 - Harmonogram rekapitulace'!V51","v":0},{"$f":"'OB6 - Harmonogram rekapitulace'!W51","v":0},{"$f":"'OB6 - Harmonogram rekapitulace'!X51","v":0},{"$f":"'OB6 - Harmonogram rekapitulace'!Y51","v":0},{"$f":"'OB6 - Harmonogram rekapitulace'!Z51","v":0},{"$f":"'OB6 - Harmonogram rekapitulace'!AA51","v":0},{"$f":"'OB6 - Harmonogram rekapitulace'!AB51","v":0},{"$f":"'OB6 - Harmonogram rekapitulace'!AC51","v":0},{"$f":"'OB6 - Harmonogram rekapitulace'!AD51","v":0},{"$f":"'OB6 - Harmonogram rekapitulace'!AE51","v":0},{"$f":"'OB6 - Harmonogram rekapitulace'!AF51","v":0},{"$f":"'OB6 - Harmonogram rekapitulace'!AG51","v":0},{"$f":"'OB6 - Harmonogram rekapitulace'!AH51","v":0},{"$f":"'OB6 - Harmonogram rekapitulace'!AI51","v":0},{"$f":"'OB6 - Harmonogram rekapitulace'!AJ51","v":0},{"$f":"'OB6 - Harmonogram rekapitulace'!AK51","v":0},{"$f":"'OB6 - Harmonogram rekapitulace'!AL51","v":0},{"$f":"'OB6 - Harmonogram rekapitulace'!AM51","v":0},{"$f":"'OB6 - Harmonogram rekapitulace'!AN51","v":0},{"$f":"'OB6 - Harmonogram rekapitulace'!AO51","v":0},{"$f":"'OB6 - Harmonogram rekapitulace'!AP51","v":0},{"$f":"'OB6 - Harmonogram rekapitulace'!AQ51","v":0},{"$f":"'OB6 - Harmonogram rekapitulace'!AR51","v":0},{"$f":"'OB6 - Harmonogram rekapitulace'!AS51","v":0},{"$f":"'OB6 - Harmonogram rekapitulace'!AT51","v":0},{"$f":"'OB6 - Harmonogram rekapitulace'!AU51","v":0},{"$f":"'OB6 - Harmonogram rekapitulace'!AV51","v":0},{"$f":"'OB6 - Harmonogram rekapitulace'!AW51","v":0}]
[]
[null,"Cena po měsících",null,{"$f":"SUM(D7:D28)","v":0},{"$f":"SUM(E7:E28)","v":0},0,0,0,0,0,0,0,0,0,0,0,0,0,0,0,0,0,0,0,0,0,0,0,0,0,0,0,0,0,0,0,0,0,0,0,0,0,0,{"$f":"SUM(AR7:AR28)","v":0}]
[null,"Cena celkem",null,{"$f":"SUM(D30:AR30)","v":0}]
[null,"neobsazeno"]
[null,"Zhotovitel na tomto listu nevyplňuje žádné hodnoty. Hodnoty jsou přenášeny z listu OB6 - Harmonogram rekapitulace !!!"]
[null,"etapa K20 - ventilátory (vzduchové, spalinové, recirkulační) včetně vnitřních spalinovodů"]
[null,"etapa K20 - tkaninový filtr"]
[null,"etapa K20 - technologie DSI"]
[]
[null,"etapa K20 - elektroinstalace"]
[null,"etapa K20 - ASŘ",null,null,null,null,null,null,null,null,null,null,null,null,null,null,null,null,null,null,null,null,null,null,null,null,null,null,null,null,null,null,null,null,null,null,null,null,null,null,null,"a"]
[null,"etapa K20 - kompresorová stanice"]
[null,"etapa K20 - připojení médií"]
[null,"etapa K20 - venkovní rozvody spalinovodů včetně napojení na komín"]
[null,"etapa K20 - venkovní konstrukce potrubního mostu (připojení popelového hospodářství a SNCR)"]
[null,"etapa K20 - opláštění a zastřešení, dokončení všech stavebních činností"]
[null,"etapa K20 - další výše nevyjmenované položky"]
[null,"etapa K20 - dokončení stavebních prací"]
[null,"etapa K20 - ukončení montážních prací"]
[null,"etapa K20 - školení zaměstnanců provozu"]
[null,"etapa K20 - příprava ke kompexnímu vyzkoušení"]
[null,"etapa K20 - komplexní vyzkoušení"]
[null,"etapa K20 - zkušební provoz"]
[null,"etapa K20 - garanční test A"]
[null,"etapa K20 - předběžné převzetí díla PAC"]
[null,"etapa K20 - garanční test B"]
[null,"etapa K20 - finální převzetí díla FAC"]